Workbook

Sheet 등급집계표
A2: 2017년 부천대학교 연구실 정기안전점검 집계표
A5: 학 과 명 | B5: 점검결과
B6: 1등급 | C6: 2등급 | D6: 3등급 | E6: 4등급 | F6: 5등급 | G6: 대상제외 | H6: 계
A7: 간호과 | B7: =COUNTIFS(등급표!$C$5:$C$120,A7,등급표!$O$5:$O$120,1) -> 0 | C7: =COUNTIFS(등급표!$C$5:$C$120,A7,등급표!$O$5:$O$120,2) -> 4 | D7: =COUNTIFS(등급표!$C$5:$C$120,A7,등급표!$O$5:$O$120,3) -> 0 | E7: =COUNTIFS(등급표!$C$5:$C$120,A7,등급표!$O$5:$O$120,4) -> 0 | F7: =COUNTIFS(등급표!$C$5:$C$120,A7,등급표!$O$5:$O$120,5) -> 0 | G7: =COUNTIFS(등급표!$C$5:$C$120,A7,등급표!$O$5:$O$120,0) -> 0 | H7: =SUM(B7:G7) -> 4
A8: 건축과 | B8: =COUNTIFS(등급표!$C$5:$C$120,A8,등급표!$O$5:$O$120,1) -> 8 | C8: =COUNTIFS(등급표!$C$5:$C$120,A8,등급표!$O$5:$O$120,2) -> 2 | D8: =COUNTIFS(등급표!$C$5:$C$120,A8,등급표!$O$5:$O$120,3) -> 0 | E8: =COUNTIFS(등급표!$C$5:$C$120,A8,등급표!$O$5:$O$120,4) -> 0 | F8: =COUNTIFS(등급표!$C$5:$C$120,A8,등급표!$O$5:$O$120,5) -> 0 | G8: =COUNTIFS(등급표!$C$5:$C$120,A8,등급표!$O$5:$O$120,0) -> 0 | H8: =SUM(B8:G8) -> 10
A9: 산업디자인과 | B9: =COUNTIFS(등급표!$C$5:$C$120,A9,등급표!$O$5:$O$120,1) -> 5 | C9: =COUNTIFS(등급표!$C$5:$C$120,A9,등급표!$O$5:$O$120,2) -> 10 | D9: =COUNTIFS(등급표!$C$5:$C$120,A9,등급표!$O$5:$O$120,3) -> 0 | E9: =COUNTIFS(등급표!$C$5:$C$120,A9,등급표!$O$5:$O$120,4) -> 0 | F9: =COUNTIFS(등급표!$C$5:$C$120,A9,등급표!$O$5:$O$120,5) -> 0 | G9: =COUNTIFS(등급표!$C$5:$C$120,A9,등급표!$O$5:$O$120,0) -> 2 | H9: 17
A10: 섬유패션비지니스과 | B10: =COUNTIFS(등급표!$C$5:$C$120,A10,등급표!$O$5:$O$120,1) -> 2 | C10: =COUNTIFS(등급표!$C$5:$C$120,A10,등급표!$O$5:$O$120,2) -> 6 | D10: =COUNTIFS(등급표!$C$5:$C$120,A10,등급표!$O$5:$O$120,3) -> 0 | E10: =COUNTIFS(등급표!$C$5:$C$120,A10,등급표!$O$5:$O$120,4) -> 0 | F10: =COUNTIFS(등급표!$C$5:$C$120,A10,등급표!$O$5:$O$120,5) -> 0 | G10: =COUNTIFS(등급표!$C$5:$C$120,A10,등급표!$O$5:$O$120,0) -> 4 | H10: 12
A11: 식품영양과 | B11: =COUNTIFS(등급표!$C$5:$C$120,A11,등급표!$O$5:$O$120,1) -> 3 | C11: =COUNTIFS(등급표!$C$5:$C$120,A11,등급표!$O$5:$O$120,2) -> 5 | D11: =COUNTIFS(등급표!$C$5:$C$120,A11,등급표!$O$5:$O$120,3) -> 0 | E11: =COUNTIFS(등급표!$C$5:$C$120,A11,등급표!$O$5:$O$120,4) -> 0 | F11: =COUNTIFS(등급표!$C$5:$C$120,A11,등급표!$O$5:$O$120,5) -> 0 | G11: =COUNTIFS(등급표!$C$5:$C$120,A11,등급표!$O$5:$O$120,0) -> 0 | H11: 8
A12: 영상&게임콘텐츠과 | B12: =COUNTIFS(등급표!$C$5:$C$120,A12,등급표!$O$5:$O$120,1) -> 1 | C12: =COUNTIFS(등급표!$C$5:$C$120,A12,등급표!$O$5:$O$120,2) -> 2 | D12: =COUNTIFS(등급표!$C$5:$C$120,A12,등급표!$O$5:$O$120,3) -> 0 | E12: =COUNTIFS(등급표!$C$5:$C$120,A12,등급표!$O$5:$O$120,4) -> 0 | F12: =COUNTIFS(등급표!$C$5:$C$120,A12,등급표!$O$5:$O$120,5) -> 0 | G12: =COUNTIFS(등급표!$C$5:$C$120,A12,등급표!$O$5:$O$120,0) -> 0 | H12: 3
A13: 재활스포츠과 | B13: =COUNTIFS(등급표!$C$5:$C$120,A13,등급표!$O$5:$O$120,1) -> 3 | C13: =COUNTIFS(등급표!$C$5:$C$120,A13,등급표!$O$5:$O$120,2) -> 3 | D13: =COUNTIFS(등급표!$C$5:$C$120,A13,등급표!$O$5:$O$120,3) -> 0 | E13: =COUNTIFS(등급표!$C$5:$C$120,A13,등급표!$O$5:$O$120,4) -> 0 | F13: =COUNTIFS(등급표!$C$5:$C$120,A13,등급표!$O$5:$O$120,5) -> 0 | G13: =COUNTIFS(등급표!$C$5:$C$120,A13,등급표!$O$5:$O$120,0) -> 0 | H13: 6
A14: 전기과 | B14: =COUNTIFS(등급표!$C$5:$C$120,A14,등급표!$O$5:$O$120,1) -> 0 | C14: =COUNTIFS(등급표!$C$5:$C$120,A14,등급표!$O$5:$O$120,2) -> 2 | D14: =COUNTIFS(등급표!$C$5:$C$120,A14,등급표!$O$5:$O$120,3) -> 0 | E14: =COUNTIFS(등급표!$C$5:$C$120,A14,등급표!$O$5:$O$120,4) -> 0 | F14: =COUNTIFS(등급표!$C$5:$C$120,A14,등급표!$O$5:$O$120,5) -> 0 | G14: =COUNTIFS(등급표!$C$5:$C$120,A14,등급표!$O$5:$O$120,0) -> 0 | H14: 2
A15: 전자과 | B15: =COUNTIFS(등급표!$C$5:$C$120,A15,등급표!$O$5:$O$120,1) -> 5 | C15: =COUNTIFS(등급표!$C$5:$C$120,A15,등급표!$O$5:$O$120,2) -> 5 | D15: =COUNTIFS(등급표!$C$5:$C$120,A15,등급표!$O$5:$O$120,3) -> 0 | E15: =COUNTIFS(등급표!$C$5:$C$120,A15,등급표!$O$5:$O$120,4) -> 0 | F15: =COUNTIFS(등급표!$C$5:$C$120,A15,등급표!$O$5:$O$120,5) -> 0 | G15: =COUNTIFS(등급표!$C$5:$C$120,A15,등급표!$O$5:$O$120,0) -> 0 | H15: 10
A16: 정보통신과 | B16: =COUNTIFS(등급표!$C$5:$C$120,A16,등급표!$O$5:$O$120,1) -> 4 | C16: =COUNTIFS(등급표!$C$5:$C$120,A16,등급표!$O$5:$O$120,2) -> 7 | D16: =COUNTIFS(등급표!$C$5:$C$120,A16,등급표!$O$5:$O$120,3) -> 0 | E16: =COUNTIFS(등급표!$C$5:$C$120,A16,등급표!$O$5:$O$120,4) -> 0 | F16: =COUNTIFS(등급표!$C$5:$C$120,A16,등급표!$O$5:$O$120,5) -> 0 | G16: =COUNTIFS(등급표!$C$5:$C$120,A16,등급표!$O$5:$O$120,0) -> 0 | H16: 11
A17: 지능로봇과 | B17: =COUNTIFS(등급표!$C$5:$C$120,A17,등급표!$O$5:$O$120,1) -> 1 | C17: =COUNTIFS(등급표!$C$5:$C$120,A17,등급표!$O$5:$O$120,2) -> 5 | D17: =COUNTIFS(등급표!$C$5:$C$120,A17,등급표!$O$5:$O$120,3) -> 0 | E17: =COUNTIFS(등급표!$C$5:$C$120,A17,등급표!$O$5:$O$120,4) -> 0 | F17: =COUNTIFS(등급표!$C$5:$C$120,A17,등급표!$O$5:$O$120,5) -> 0 | G17: =COUNTIFS(등급표!$C$5:$C$120,A17,등급표!$O$5:$O$120,0) -> 0 | H17: 6
A18: 컴퓨터소프트웨어과 | B18: =COUNTIFS(등급표!$C$5:$C$120,A18,등급표!$O$5:$O$120,1) -> 1 | C18: =COUNTIFS(등급표!$C$5:$C$120,A18,등급표!$O$5:$O$120,2) -> 7 | D18: =COUNTIFS(등급표!$C$5:$C$120,A18,등급표!$O$5:$O$120,3) -> 0 | E18: =COUNTIFS(등급표!$C$5:$C$120,A18,등급표!$O$5:$O$120,4) -> 0 | F18: =COUNTIFS(등급표!$C$5:$C$120,A18,등급표!$O$5:$O$120,5) -> 0 | G18: =COUNTIFS(등급표!$C$5:$C$120,A18,등급표!$O$5:$O$120,0) -> 0 | H18: 8
A19: 컴퓨터정보보안과 | B19: =COUNTIFS(등급표!$C$5:$C$120,A19,등급표!$O$5:$O$120,1) -> 0 | C19: =COUNTIFS(등급표!$C$5:$C$120,A19,등급표!$O$5:$O$120,2) -> 4 | D19: =COUNTIFS(등급표!$C$5:$C$120,A19,등급표!$O$5:$O$120,3) -> 0 | E19: =COUNTIFS(등급표!$C$5:$C$120,A19,등급표!$O$5:$O$120,4) -> 0 | F19: =COUNTIFS(등급표!$C$5:$C$120,A19,등급표!$O$5:$O$120,5) -> 0 | G19: =COUNTIFS(등급표!$C$5:$C$120,A19,등급표!$O$5:$O$120,0) -> 0 | H19: 4
A20: 토목과 | B20: =COUNTIFS(등급표!$C$5:$C$120,A20,등급표!$O$5:$O$120,1) -> 4 | C20: =COUNTIFS(등급표!$C$5:$C$120,A20,등급표!$O$5:$O$120,2) -> 4 | D20: =COUNTIFS(등급표!$C$5:$C$120,A20,등급표!$O$5:$O$120,3) -> 0 | E20: =COUNTIFS(등급표!$C$5:$C$120,A20,등급표!$O$5:$O$120,4) -> 0 | F20: =COUNTIFS(등급표!$C$5:$C$120,A20,등급표!$O$5:$O$120,5) -> 0 | G20: =COUNTIFS(등급표!$C$5:$C$120,A20,등급표!$O$5:$O$120,0) -> 0 | H20: =SUM(B20:G20) -> 8
A21: 호텔외식조리과 | B21: =COUNTIFS(등급표!$C$5:$C$120,A21,등급표!$O$5:$O$120,1) -> 4 | C21: =COUNTIFS(등급표!$C$5:$C$120,A21,등급표!$O$5:$O$120,2) -> 3 | D21: =COUNTIFS(등급표!$C$5:$C$120,A21,등급표!$O$5:$O$120,3) -> 0 | E21: =COUNTIFS(등급표!$C$5:$C$120,A21,등급표!$O$5:$O$120,4) -> 0 | F21: =COUNTIFS(등급표!$C$5:$C$120,A21,등급표!$O$5:$O$120,5) -> 0 | G21: =COUNTIFS(등급표!$C$5:$C$120,A21,등급표!$O$5:$O$120,0) -> 0 | H21: 7
B22: =COUNTIFS(등급표!$C$5:$C$120,A22,등급표!$O$5:$O$120,1) -> 0 | C22: =COUNTIFS(등급표!$C$5:$C$120,A22,등급표!$O$5:$O$120,2) -> 0 | D22: =COUNTIFS(등급표!$C$5:$C$120,A22,등급표!$O$5:$O$120,3) -> 0 | E22: =COUNTIFS(등급표!$C$5:$C$120,A22,등급표!$O$5:$O$120,4) -> 0 | F22: =COUNTIFS(등급표!$C$5:$C$120,A22,등급표!$O$5:$O$120,5) -> 0 | G22: =COUNTIFS(등급표!$C$5:$C$120,A22,등급표!$O$5:$O$120,0) -> 0 | H22: 0
B23: =COUNTIFS(등급표!$C$5:$C$120,A23,등급표!$O$5:$O$120,1) -> 0 | C23: =COUNTIFS(등급표!$C$5:$C$120,A23,등급표!$O$5:$O$120,2) -> 0 | D23: =COUNTIFS(등급표!$C$5:$C$120,A23,등급표!$O$5:$O$120,3) -> 0 | E23: =COUNTIFS(등급표!$C$5:$C$120,A23,등급표!$O$5:$O$120,4) -> 0 | F23: =COUNTIFS(등급표!$C$5:$C$120,A23,등급표!$O$5:$O$120,5) -> 0 | G23: =COUNTIFS(등급표!$C$5:$C$120,A23,등급표!$O$5:$O$120,0) -> 0 | H23: 0
A24: 계 | B24: =SUM(B7:B23) -> 41 | C24: 69 | D24: =SUM(D7:D23) -> 0 | E24: 0 | F24: 0 | G24: 6 | H24: 116
A25: 백분율(%) | B25: =B24/H24 -> 0.3534482759 | C25: =C24/H24 -> 0.5948275862 | D25: =D24/H24 -> 0 | E25: =E24/H24 -> 0 | F25: =F24/H24 -> 0 | G25: =G24/H24 -> 0.05172413793 | H25: =SUM(B25:G25) -> 1

Sheet 등급표
A1: ( o : 적, 유 x : 부, 무 ㆍ : 해당사항없음 )
A2: 2017년 연구실 안전진단 등급표 | G2: 분야별 등급 및 종합등급
A4: 순번 | B4: 번호 | C4: 학과명 | D4: 연구실명 | E4: 건물명 | F4: 호실 | G4: 일반 안전 | H4: 위생 안전 | I4: 전기 안전 | J4: 소방 안전 | K4: 화공 안전 | L4: 가스 안전 | M4: 기계 안전 | N4: 생물 안전 | O4: 종합 등급
B5: 1 | C5: 간호과 | D5: 시뮬레이션센터 | E5: 밀레니엄관 | F5: H406 | G5: 1 | H5: 1 | I5: 2 | J5: 1 | K5: - | L5: - | M5: - | N5: 2 | O5: =MAX(G5:N5) -> 2
B6: 2 | C6: 간호과 | D6: 심화학습실습실 | E6: 밀레니엄관 | F6: H405 | G6: 1 | H6: 1 | I6: 2 | J6: 1 | K6: - | L6: - | M6: - | N6: 2 | O6: =MAX(G6:N6) -> 2
B7: 3 | C7: 간호과 | D7: 기초간호과학실습실 | E7: 밀레니엄관 | F7: H407 | G7: 1 | H7: 1 | I7: 1 | J7: 1 | K7: - | L7: - | M7: - | N7: 2 | O7: 2
B8: 4 | C8: 간호과 | D8: 기본간호학실습실 | E8: 밀레니엄관 | F8: H401 | G8: 1 | H8: 1 | I8: 1 | J8: 1 | K8: - | L8: - | M8: - | N8: 2 | O8: 2
B9: 5 | C9: 건축과 | D9: 환경연구실 | E9: 공학관 | F9: AB107 | G9: 1 | H9: 1 | I9: 2 | J9: 1 | K9: - | L9: - | M9: - | N9: - | O9: 2
B10: 6 | C10: 건축과 | D10: 컴퓨터그래픽실 | E10: 공학관 | F10: A0403 | G10: 1 | H10: 1 | I10: 1 | J10: 1 | K10: - | L10: - | M10: - | N10: - | O10: 1
B11: 7 | C11: 건축과 | D11: 프레젠테이션실 | E11: 공학관 | F11: A0404 | G11: 1 | H11: 1 | I11: 1 | J11: 1 | K11: - | L11: - | M11: - | N11: - | O11: 1
B12: 8 | C12: 건축과 | D12: 첨단강의실1 | E12: 공학관 | F12: A0502 | G12: 1 | H12: 1 | I12: 1 | J12: 1 | K12: - | L12: - | M12: - | N12: - | O12: 1
B13: 9 | C13: 건축과 | D13: 첨단강의실2 | E13: 공학관 | F13: A0503 | G13: 1 | H13: 1 | I13: 1 | J13: 1 | K13: - | L13: - | M13: - | N13: - | O13: 1
B14: 10 | C14: 건축과 | D14: 첨단강의실3 | E14: 공학관 | F14: A0507 | G14: 1 | H14: 1 | I14: 1 | J14: 1 | K14: - | L14: - | M14: - | N14: - | O14: 1
B15: 11 | C15: 건축과 | D15: 설계STUDIO-A | E15: 공학관 | F15: A0508 | G15: 1 | H15: 1 | I15: 1 | J15: 1 | K15: - | L15: - | M15: - | N15: - | O15: 1
B16: 12 | C16: 건축과 | D16: 설계STUDIO-B | E16: 공학관 | F16: A0509 | G16: 1 | H16: 1 | I16: 1 | J16: 1 | K16: - | L16: - | M16: - | N16: - | O16: 1
B17: 13 | C17: 건축과 | D17: 모형제작실 | E17: 공학관 | F17: A0602 | G17: 1 | H17: 1 | I17: 1 | J17: 1 | K17: - | L17: - | M17: 2 | N17: - | O17: 2
B18: 14 | C18: 건축과 | D18: 건축CAD실 | E18: 예지관 | F18: C0106 | G18: 1 | H18: 1 | I18: 1 | J18: 1 | K18: - | L18: - | M18: - | N18: - | O18: 1
B19: 15 | C19: 산업디자인과 | D19: 제1컴퓨터실습실 | E19: 한길관 | F19: E0422 | G19: 실습실 반납 | O19: 0
B20: 16 | C20: 산업디자인과 | D20: 디자인실습실6 | E20: 한길관 | F20: E0515 | G20: 1 | H20: 1 | I20: 1 | J20: 2 | K20: - | L20: - | M20: - | N20: - | O20: 2
B21: 17 | C21: 산업디자인과 | D21: 제2컴퓨터실습실 | E21: 한길관 | F21: E0432 | G21: 실습실 반납 | O21: 0
B22: 18 | C22: 산업디자인과 | D22: 컴퓨터교육실3 | E22: 한길관 | F22: E0510 | G22: 1 | H22: 1 | I22: 1 | J22: 1 | K22: - | L22: - | M22: - | N22: - | O22: 1
B23: 19 | C23: 산업디자인과 | D23: 컴퓨터교육실2 | E23: 한길관 | F23: E0517 | G23: 1 | H23: 1 | I23: 1 | J23: 1 | K23: - | L23: - | M23: - | N23: - | O23: 1
B24: 20 | C24: 산업디자인과 | D24: 컴퓨터교육실1 | E24: 한길관 | F24: E0520 | G24: 1 | H24: 1 | I24: 1 | J24: 1 | K24: - | L24: - | M24: - | N24: - | O24: 1
B25: 21 | C25: 산업디자인과 | D25: 팀 세미나실 | E25: 한길관 | F25: E0511 | G25: 1 | H25: 1 | I25: 2 | J25: 1 | K25: - | L25: - | M25: - | N25: - | O25: 2
B26: 22 | C26: 산업디자인과 | D26: 운송기기 크레이 모델링실 | E26: 한길관 | F26: EB1 | G26: 2 | H26: 1 | I26: 1 | J26: 1 | K26: - | L26: - | M26: - | N26: - | O26: 2
B27: 23 | C27: 산업디자인과 | D27: 운송기기 크레이 모델링 준비실 | E27: 한길관 | F27: EB131 | G27: 1 | H27: 1 | I27: 1 | J27: 1 | K27: - | L27: - | M27: 2 | N27: - | O27: 2
B28: 24 | C28: 산업디자인과 | D28: 컴퓨터교육실4 | E28: 한길관 | F28: E0523 | G28: 1 | H28: 1 | I28: 1 | J28: 1 | K28: - | L28: - | M28: - | N28: - | O28: 1
B29: 25 | C29: 산업디자인과 | D29: 3D프린트가공실 | E29: 한길관 | F29: EB1 | G29: 1 | H29: 1 | I29: 2 | J29: 1 | K29: - | L29: - | M29: - | N29: - | O29: 2
B30: 26 | C30: 산업디자인과 | D30: 디자인실습실4 | E30: 한길관 | F30: E0502 | G30: 1 | H30: 1 | I30: 1 | J30: 2 | K30: - | L30: - | M30: - | N30: - | O30: 2
B31: 27 | C31: 산업디자인과 | D31: 디자인실습실5 | E31: 한길관 | F31: E0504 | G31: 1 | H31: 1 | I31: 1 | J31: 2 | K31: - | L31: - | M31: - | N31: - | O31: 2
B32: 28 | C32: 산업디자인과 | D32: 디자인실습실3 | E32: 한길관 | F32: E0539 | G32: 1 | H32: 1 | I32: 1 | J32: 2 | K32: - | L32: - | M32: - | N32: - | O32: 2
B33: 29 | C33: 산업디자인과 | D33: 디자인실습실2 | E33: 한길관 | F33: E0536 | G33: 1 | H33: 1 | I33: 1 | J33: 2 | K33: - | L33: - | M33: - | N33: - | O33: 2
B34: 30 | C34: 산업디자인과 | D34: 디자인실습실1 | E34: 한길관 | F34: E0533 | G34: 1 | H34: 1 | I34: 1 | J34: 2 | K34: - | L34: - | M34: - | N34: - | O34: 2
B35: 31 | C35: 산업디자인과 | D35: 4학년 전공연구실 | E35: 한길관 | F35: E0530 | G35: 1 | H35: 1 | I35: 1 | J35: 1 | K35: - | L35: - | M35: - | N35: - | O35: 1
B36: 32 | C36: 섬유패션비지니스과 | D36: 섬유패션CAD실 | E36: 한길관 | F36: E0401 | G36: 1 | H36: 1 | I36: 1 | J36: 1 | K36: - | L36: - | M36: - | N36: - | O36: 1
B37: 33 | C37: 섬유패션비지니스과 | D37: 패션소재기획실 | E37: 한길관 | F37: E0403 | G37: 강의실 변경 | O37: 0
B38: 34 | C38: 섬유패션비지니스과 | D38: 섬유패션 실습실(Ⅱ) | E38: 한길관 | F38: E0406 | G38: 1 | H38: 1 | I38: 1 | J38: 1 | K38: - | L38: - | M38: - | N38: - | O38: 1
B39: 35 | C39: 섬유패션비지니스과 | D39: 섬유패션 실습실(Ⅲ) | E39: 한길관 | F39: E0409 | G39: 1 | H39: 1 | I39: 2 | J39: 1 | K39: - | L39: - | M39: - | N39: - | O39: 2
B40: 36 | C40: 섬유패션비지니스과 | D40: 패션조형실습실(Ⅰ) | E40: 한길관 | F40: E0502 | G40: 공실(학교 반납) | O40: 0
B41: 37 | C41: 섬유패션비지니스과 | D41: 실습실(2) | E41: 한길관 | F41: E0501 | G41: 공실(학교 반납) | O41: 0
B42: 38 | C42: 섬유패션비지니스과 | D42: 실습재료실 | E42: 한길관 | F42: E0101 | G42: 1 | H42: 1 | I42: 1 | J42: 1 | K42: 2 | L42: - | M42: 2 | N42: - | O42: 2
B43: 39 | C43: 섬유패션비지니스과 | D43: 섬유패션 실습실(Ⅰ) | E43: 한길관 | F43: E0102 | G43: 2 | H43: 1 | I43: 2 | J43: 1 | K43: 2 | L43: 2 | M43: 1 | N43: - | O43: 2
B44: 40 | C44: 섬유패션비지니스과 | D44: NCS편직실습실 | E44: 한길관 | F44: E0428 | G44: 창고 변경 | O44: 0
B45: 41 | C45: 섬유패션비지니스과 | D45: 섬유패션 제품제작실 | E45: 한길관 | F45: E0429 | G45: 1 | H45: 1 | I45: 1 | J45: 2 | K45: - | L45: - | M45: - | N45: - | O45: 2
B46: 42 | C46: 섬유패션비지니스과 | D46: 섬유패션 전자상거래실 | E46: 한길관 | F46: E0230 | G46: 1 | H46: 1 | I46: 1 | J46: 2 | K46: - | L46: - | M46: - | N46: - | O46: 2
B47: 43 | C47: 섬유패션비지니스과 | D47: 컴퓨터니트실험실 | E47: 한길관 | F47: EB105 | G47: 2 | H47: 1 | I47: 1 | J47: 1 | K47: - | L47: 2 | M47: - | N47: - | O47: 2
B48: 44 | C48: 식품영양과 | D48: 종합실험실 | E48: 예지관 | F48: C0101 | G48: 1 | H48: 2 | I48: 1 | J48: 1 | K48: 2 | L48: 1 | M48: 1 | N48: - | O48: 2
B49: 45 | C49: 식품영양과 | D49: 실험준비실 | E49: 예지관 | F49: C0102 | G49: 1 | H49: 1 | I49: 2 | J49: 1 | K49: - | L49: - | M49: - | N49: - | O49: 2
B50: 46 | C50: 식품영양과 | D50: 기구실 | E50: 예지관 | F50: C0103 | G50: 1 | H50: 1 | I50: 1 | J50: 1 | K50: 2 | L50: - | M50: - | N50: - | O50: 2
B51: 47 | C51: 식품영양과 | D51: 종합실습실 | E51: 예지관 | F51: C0306 | G51: 1 | H51: 1 | I51: 1 | J51: 1 | K51: - | L51: - | M51: - | N51: - | O51: 1
B52: 48 | C52: 식품영양과 | D52: 조리과학실 | E52: 예지관 | F52: C0307 | G52: 1 | H52: 1 | I52: 1 | J52: 1 | K52: - | L52: - | M52: - | N52: - | O52: 1
B53: 49 | C53: 식품영양과 | D53: 조리실습실 | E53: 예지관 | F53: C0308 | G53: 1 | H53: 1 | I53: 1 | J53: 1 | K53: - | L53: 1 | M53: - | N53: - | O53: 1
B54: 50 | C54: 식품영양과 | D54: 서양조리실습실 | E54: 예지관 | F54: C0408 | G54: 1 | H54: 1 | I54: 2 | J54: 1 | K54: - | L54: 1 | M54: 1 | N54: - | O54: 2
B55: 51 | C55: 식품영양과 | D55: 관능평가실 | E55: 예지관 | F55: C0509 | G55: 1 | H55: 1 | I55: 2 | J55: 1 | K55: - | L55: - | M55: - | N55: - | O55: 2
B56: 52 | C56: 영상&게임콘텐츠과 | D56: 3D VISUAL실 | E56: 한길관 | F56: E0416 | G56: 1 | H56: 1 | I56: 1 | J56: 1 | K56: - | L56: - | M56: - | N56: - | O56: 1
B57: 53 | C57: 영상&게임콘텐츠과 | D57: 컴퓨터실 | E57: 한길관 | F57: E0419 | G57: 1 | H57: 1 | I57: 2 | J57: 1 | K57: - | L57: - | M57: - | N57: - | O57: 2
B58: 54 | C58: 영상&게임콘텐츠과 | D58: 3D STATION실 | E58: 한길관 | F58: E0438 | G58: 1 | H58: 1 | I58: 2 | J58: 1 | K58: - | L58: - | M58: - | N58: - | O58: 2
B59: 55 | C59: 재활스포츠과 | D59: 실습실B | E59: 기념관,체육관 | F59: I0205 | G59: 1 | H59: 1 | I59: 1 | J59: 1 | K59: - | L59: - | M59: - | N59: - | O59: 1
B60: 56 | C60: 재활스포츠과 | D60: 실습실A | E60: 기념관,체육관 | F60: I0201 | G60: 1 | H60: 1 | I60: 1 | J60: 2 | K60: - | L60: - | M60: - | N60: - | O60: 2
B61: 57 | C61: 재활스포츠과 | D61: 운동재활실습실C | E61: 기념관,체육관 | F61: I0201 | G61: 1 | H61: 1 | I61: 1 | J61: 2 | K61: - | L61: - | M61: - | N61: - | O61: 2
B62: 58 | C62: 재활스포츠과 | D62: 댄스실 | E62: 기념관,체육관 | F62: I0101 | G62: 1 | H62: 1 | I62: 1 | J62: 1 | K62: - | L62: - | M62: - | N62: - | O62: 1
B63: 59 | C63: 재활스포츠과 | D63: TRX실 | E63: 기념관,체육관 | F63: IB104 | G63: 1 | H63: 1 | I63: 1 | J63: 1 | K63: - | L63: - | M63: - | N63: - | O63: 1
B64: 60 | C64: 재활스포츠과 | D64: 체성분,체형분석실 | E64: 기념관,체육관 | F64: IB101 | G64: 1 | H64: 1 | I64: 2 | J64: 1 | K64: - | L64: - | M64: - | N64: - | O64: 2
B65: 61 | C65: 전기과 | D65: 컴퓨터실습실 | E65: 한길관 | F65: E0422 | G65: 1 | H65: 1 | I65: 1 | J65: 2 | K65: - | L65: - | M65: - | N65: - | O65: 2
B66: 62 | C66: 전기과 | D66: 전기실습실 | E66: 한길관 | F66: E0432 | G66: 1 | H66: 1 | I66: 2 | J66: 2 | K66: - | L66: - | M66: - | N66: - | O66: 2
B67: 63 | C67: 전자과 | D67: Project실습실 | E67: 한길관 | F67: E0201 | G67: 2 | H67: 2 | I67: 1 | J67: 1 | K67: 2 | L67: - | M67: 2 | N67: - | O67: 2
B68: 64 | C68: 전자과 | D68: 컴퓨터실습실 | E68: 한길관 | F68: E0203 | G68: 1 | H68: 1 | I68: 2 | J68: 1 | K68: - | L68: - | M68: - | N68: - | O68: 2
B69: 65 | C69: 전자과 | D69: 디지털공학실험실 | E69: 한길관 | F69: E0207 | G69: 1 | H69: 1 | I69: 1 | J69: 1 | K69: - | L69: - | M69: - | N69: - | O69: 1
B70: 66 | C70: 전자과 | D70: 반도체공정장비실1 | E70: 한길관 | F70: E0212 | G70: 1 | H70: 1 | I70: 1 | J70: 1 | K70: - | L70: - | M70: - | N70: - | O70: =MAX(G70:N70) -> 1
B71: 67 | C71: 전자과 | D71: 반도체공정장비실2 | E71: 한길관 | F71: E0213 | G71: 1 | H71: 1 | I71: 1 | J71: 1 | K71: - | L71: - | M71: - | N71: - | O71: 1
B72: 68 | C72: 전자과 | D72: 전자공학실험실 | E72: 한길관 | F72: E0216 | G72: 1 | H72: 1 | I72: 2 | J72: 1 | L72: - | M72: - | N72: - | O72: 2
B73: 69 | C73: 전자과 | D73: 반도체기초 실험실 | E73: 한길관 | F73: E0236 | G73: 1 | H73: 1 | I73: 1 | J73: 2 | K73: - | L73: - | M73: - | N73: - | O73: 2
B74: 70 | C74: 전자과 | D74: 전자응용실험실 | E74: 한길관 | F74: E0316 | G74: 1 | H74: 1 | I74: 1 | J74: 1 | K74: - | L74: - | M74: - | N74: - | O74: 1
B75: 71 | C75: 전자과 | D75: 전자제어실험실 | E75: 한길관 | F75: E0320 | G75: 1 | H75: 1 | I75: 2 | J75: 1 | K75: - | L75: - | M75: - | N75: - | O75: 2
B76: 72 | C76: 전자과 | D76: 취업아카데미 실험실 | E76: 한길관 | F76: E0323 | G76: 1 | H76: 1 | I76: 1 | J76: 1 | K76: - | L76: - | M76: - | N76: - | O76: 1
B77: 73 | C77: 정보통신과 | D77: 컴퓨터2실 | E77: 꿈집 | F77: B1001 | G77: 1 | H77: 1 | I77: 2 | J77: 1 | K77: - | L77: - | M77: - | N77: - | O77: 2
B78: 74 | C78: 정보통신과 | D78: 컴퓨터1실 | E78: 꿈집 | F78: B1004 | G78: 1 | H78: 1 | I78: 2 | J78: 1 | K78: - | L78: - | M78: - | N78: - | O78: 2
B79: 75 | C79: 정보통신과 | D79: 응용소프트웨어실 | E79: 꿈집 | F79: B1005 | G79: 1 | H79: 1 | I79: 2 | J79: 2 | K79: - | L79: - | M79: - | N79: - | O79: 2
B80: 76 | C80: 정보통신과 | D80: 응용전자실험실 | E80: 꿈집 | F80: B1008 | G80: 1 | H80: 1 | I80: 1 | J80: 1 | K80: - | L80: - | M80: - | N80: - | O80: 1
B81: 77 | C81: 정보통신과 | D81: 네트워크실 | E81: 꿈집 | F81: B1102 | G81: 1 | H81: 1 | I81: 1 | J81: 1 | K81: - | L81: - | M81: - | N81: - | O81: 1
B82: 78 | C82: 정보통신과 | D82: 아날로그실습실 | E82: 꿈집 | F82: B1108 | G82: 1 | H82: 1 | I82: 1 | J82: 1 | K82: - | L82: - | M82: - | N82: - | O82: 1
B83: 79 | C83: 정보통신과 | D83: WEBMASTER실 | E83: 꿈집 | F83: B1204 | G83: 1 | H83: 1 | I83: 1 | J83: 2 | K83: - | L83: - | M83: - | N83: - | O83: 2
B84: 80 | C84: 정보통신과 | D84: 정보통신실습실 | E84: 꿈집 | F84: B1215 | G84: 1 | H84: 1 | I84: 2 | J84: 1 | K84: - | L84: - | M84: - | N84: - | O84: 2
B85: 81 | C85: 정보통신과 | D85: 디지털통신실험실 | E85: 꿈집 | F85: B1304 | G85: 1 | H85: 1 | I85: 1 | J85: 2 | K85: - | L85: - | M85: - | N85: - | O85: 2
B86: 82 | C86: 정보통신과 | D86: e-교실 | E86: 꿈집 | F86: B1305-1 | G86: 1 | H86: 1 | I86: 2 | J86: 1 | K86: - | L86: - | M86: - | N86: - | O86: 2
B87: 83 | C87: 정보통신과 | D87: 캡스톤디자인Ⅲ | E87: 꿈집 | F87: B1305 | G87: 1 | H87: 1 | I87: 1 | J87: 1 | K87: - | L87: - | M87: - | N87: - | O87: 1
B88: 84 | C88: 지능로봇과 | D88: 전동기제어실습실 | E88: 한길관 | F88: E0218 | G88: 1 | H88: 1 | I88: 1 | J88: 1 | K88: - | L88: - | M88: - | N88: - | O88: 1
B89: 85 | C89: 지능로봇과 | D89: 제1컴퓨터실습실 | E89: 한길관 | F89: E0222 | G89: 1 | H89: 1 | I89: 2 | J89: 1 | K89: - | L89: - | M89: - | N89: - | O89: 2
B90: 86 | C90: 지능로봇과 | D90: 기초전자실험실 | E90: 한길관 | F90: E0228 | G90: 1 | H90: 1 | I90: 2 | J90: 1 | K90: - | L90: - | M90: - | N90: - | O90: 2
B91: 87 | C91: 지능로봇과 | D91: 로봇공학실 | E91: 한길관 | F91: E0301 | G91: 1 | H91: 1 | I91: 2 | J91: 1 | K91: - | L91: - | M91: - | N91: - | O91: 2
B92: 88 | C92: 지능로봇과 | D92: 제2컴퓨터실습실 | E92: 한길관 | F92: E0338 | G92: 1 | H92: 1 | I92: 2 | J92: 1 | K92: - | L92: - | M92: - | N92: - | O92: 2
B93: 89 | C93: 지능로봇과 | D93: 시퀸스실습실 | E93: 한길관 | F93: E0343 | G93: 1 | H93: 1 | I93: 2 | J93: 1 | K93: - | L93: - | M93: - | N93: - | O93: 2
B94: 90 | C94: 컴퓨터소프트웨어과 | D94: 제2프로젝트실 | E94: 꿈집 | F94: B0512 | G94: 1 | H94: 1 | I94: 1 | J94: 1 | K94: - | L94: - | M94: - | N94: - | O94: 1
B95: 91 | C95: 컴퓨터소프트웨어과 | D95: 제1공용컴퓨터실 | E95: 꿈집 | F95: B0601 | G95: 1 | H95: 1 | I95: 1 | J95: 2 | K95: - | L95: - | M95: - | N95: - | O95: 2
B96: 92 | C96: 컴퓨터소프트웨어과 | D96: 제2공용컴퓨터실 | E96: 꿈집 | F96: B0604 | G96: 1 | H96: 1 | I96: 1 | J96: 2 | K96: - | L96: - | M96: - | N96: - | O96: 2
B97: 93 | C97: 컴퓨터소프트웨어과 | D97: 멀티미디어실 | E97: 꿈집 | F97: B0603 | G97: 1 | H97: 1 | I97: 2 | J97: 2 | K97: - | L97: - | M97: - | N97: - | O97: 2
B98: 94 | C98: 컴퓨터소프트웨어과 | D98: 제3공용컴퓨터실 | E98: 꿈집 | F98: B0608 | G98: 1 | H98: 1 | I98: 1 | J98: 2 | K98: - | L98: - | M98: - | N98: - | O98: 2
B99: 95 | C99: 컴퓨터소프트웨어과 | D99: 제4공용컴퓨터실 | E99: 꿈집 | F99: B0611 | G99: 1 | H99: 1 | I99: 1 | J99: 2 | K99: - | L99: - | M99: - | N99: - | O99: 2
B100: 96 | C100: 컴퓨터소프트웨어과 | D100: 제1프로젝트실 | E100: 꿈집 | F100: B0607 | G100: 1 | H100: 1 | I100: 2 | J100: 1 | K100: - | L100: - | M100: - | N100: - | O100: 2
B101: 97 | C101: 컴퓨터소프트웨어과 | D101: 제5공용컴퓨터실 | E101: 꿈집 | F101: B0614 | G101: 1 | H101: 1 | I101: 1 | J101: 2 | K101: - | L101: - | M101: - | N101: - | O101: 2
B102: 98 | C102: 컴퓨터정보보안과 | D102: 제3컴퓨터실 | E102: 꿈집 | F102: B1101 | G102: 1 | H102: 1 | I102: 1 | J102: 2 | K102: - | L102: - | M102: - | N102: - | O102: 2
B103: 99 | C103: 컴퓨터정보보안과 | D103: 제2컴퓨터실 | E103: 꿈집 | F103: B1103 | G103: 1 | H103: 1 | I103: 1 | J103: 2 | K103: - | L103: - | M103: - | N103: - | O103: 2
B104: 100 | C104: 컴퓨터정보보안과 | D104: 제1컴퓨터실 | E104: 꿈집 | F104: B1110 | G104: 1 | H104: 1 | I104: 2 | J104: 2 | K104: - | L104: - | M104: - | N104: - | O104: 2
B105: 101 | C105: 컴퓨터정보보안과 | D105: 제5컴퓨터실 | E105: 꿈집 | F105: B1306 | G105: 1 | H105: 1 | I105: 1 | J105: 2 | K105: - | L105: - | M105: - | N105: - | O105: 2
B106: 102 | C106: 토목과 | D106: 토질실험실 | E106: 공학관 | F106: A0101 | G106: 1 | H106: 1 | I106: 1 | J106: 1 | K106: - | L106: - | M106: - | N106: - | O106: 1
B107: 103 | C107: 토목과 | D107: 토질실험준비실 | E107: 공학관 | F107: A0102 | G107: 1 | H107: 1 | I107: 1 | J107: 1 | K107: 1 | L107: - | M107: - | N107: - | O107: 1
B108: 104 | C108: 토목과 | D108: 환경실험실 | E108: 공학관 | F108: A0201 | G108: 1 | H108: 1 | I108: 1 | J108: 2 | K108: - | L108: - | M108: - | N108: - | O108: 2
B109: 105 | C109: 토목과 | D109: 측량실 | E109: 공학관 | F109: A0205 | G109: 1 | H109: 1 | I109: 1 | J109: 1 | K109: - | L109: - | M109: - | N109: - | O109: 1
B110: 106 | C110: 토목과 | D110: CAD실 | E110: 공학관 | F110: A0309 | G110: 1 | H110: 1 | I110: 2 | J110: 1 | K110: - | L110: - | M110: - | N110: - | O110: 2
B111: 107 | C111: 토목과 | D111: 전산구조설계실 | E111: 공학관 | F111: A0310 | G111: 1 | H111: 1 | I111: 2 | J111: 1 | K111: - | L111: - | M111: - | N111: - | O111: 2
B112: 108 | C112: 토목과 | D112: 구조재료실험실 | E112: 공학관 | F112: AB101 | G112: 1 | H112: 2 | I112: 2 | J112: 1 | K112: 2 | L112: - | M112: 2 | N112: - | O112: 2
B113: 109 | C113: 토목과 | D113: 수리실험실 | E113: 공학관 | F113: AB102 | G113: 1 | H113: 1 | I113: 1 | J113: 1 | K113: - | L113: - | M113: - | N113: - | O113: 1
B114: 110 | C114: 호텔외식조리과 | D114: 한국조리실 | E114: 예지관 | F114: C0201 | G114: 1 | H114: 1 | I114: 2 | J114: 1 | K114: - | L114: 1 | M114: - | N114: - | O114: 2
B115: 111 | C115: 호텔외식조리과 | D115: 제과제빵실 | E115: 예지관 | F115: C0203 | G115: 1 | H115: 1 | I115: 1 | J115: 1 | K115: - | L115: 1 | M115: 1 | N115: - | O115: 1
B116: 112 | C116: 호텔외식조리과 | D116: 식음료 및 식공간 연출 | E116: 예지관 | F116: C0205 | G116: 1 | H116: 1 | I116: 2 | J116: 1 | K116: - | L116: - | M116: - | N116: - | O116: 2
B117: 113 | C117: 호텔외식조리과 | D117: 양식조리실 | E117: 예지관 | F117: C0301 | G117: 1 | H117: 1 | I117: 1 | J117: 1 | K117: - | L117: 1 | M117: - | N117: - | O117: 1
B118: 114 | C118: 호텔외식조리과 | D118: 푸드스튜디오 | E118: 예지관 | F118: C0401 | G118: 1 | H118: 1 | I118: 1 | J118: 2 | K118: - | L118: 1 | M118: - | N118: - | O118: 2
B119: 115 | C119: 호텔외식조리과 | D119: 메뉴 개발실1 | E119: 예지관 | F119: C0501 | G119: 1 | H119: 1 | I119: 1 | J119: 1 | K119: - | L119: 1 | M119: - | N119: - | O119: 1
B120: 116 | C120: 호텔외식조리과 | D120: 메뉴 개발실2 | E120: 예지관 | F120: C0502 | G120: 1 | H120: 1 | I120: 1 | J120: 1 | K120: - | L120: 1 | M120: - | N120: - | O120: 1

Sheet 지적사항 집계표
A2: 2017년 부천대학교 연구실 정기안전점검 점검사항 집계표
A5: 학 과 명 | B5: 점검결과
B6: 일반안전 | C6: 산업위생 | D6: 전기안전 | E6: 소방안전 | F6: 화공안전 | G6: 가스안전 | H6: 기계안전 | I6: 생물안전 | J6: 계
A7: 간호과 | B7: =COUNTIFS('지적사항 및 개선방안(종합)'!$C$3:$C$286,$A7,'지적사항 및 개선방안(종합)'!$G$3:$G$286,B$6) -> 0 | C7: =COUNTIFS('지적사항 및 개선방안(종합)'!$C$3:$C$286,$A7,'지적사항 및 개선방안(종합)'!$G$3:$G$286,C$6) -> 0 | D7: =COUNTIFS('지적사항 및 개선방안(종합)'!$C$3:$C$286,$A7,'지적사항 및 개선방안(종합)'!$G$3:$G$286,D$6) -> 2 | E7: =COUNTIFS('지적사항 및 개선방안(종합)'!$C$3:$C$286,$A7,'지적사항 및 개선방안(종합)'!$G$3:$G$286,E$6) -> 0 | F7: =COUNTIFS('지적사항 및 개선방안(종합)'!$C$3:$C$286,$A7,'지적사항 및 개선방안(종합)'!$G$3:$G$286,F$6) -> 0 | G7: =COUNTIFS('지적사항 및 개선방안(종합)'!$C$3:$C$286,$A7,'지적사항 및 개선방안(종합)'!$G$3:$G$286,G$6) -> 0 | H7: =COUNTIFS('지적사항 및 개선방안(종합)'!$C$3:$C$286,$A7,'지적사항 및 개선방안(종합)'!$G$3:$G$286,H$6) -> 0 | I7: =COUNTIFS('지적사항 및 개선방안(종합)'!$C$3:$C$286,$A7,'지적사항 및 개선방안(종합)'!$G$3:$G$286,I$6) -> 6 | J7: =SUM(B7:I7) -> 8
A8: 건축과 | B8: =COUNTIFS('지적사항 및 개선방안(종합)'!$C$3:$C$286,$A8,'지적사항 및 개선방안(종합)'!$G$3:$G$286,B$6) -> 0 | C8: =COUNTIFS('지적사항 및 개선방안(종합)'!$C$3:$C$286,$A8,'지적사항 및 개선방안(종합)'!$G$3:$G$286,C$6) -> 0 | D8: =COUNTIFS('지적사항 및 개선방안(종합)'!$C$3:$C$286,$A8,'지적사항 및 개선방안(종합)'!$G$3:$G$286,D$6) -> 2 | E8: =COUNTIFS('지적사항 및 개선방안(종합)'!$C$3:$C$286,$A8,'지적사항 및 개선방안(종합)'!$G$3:$G$286,E$6) -> 0 | F8: =COUNTIFS('지적사항 및 개선방안(종합)'!$C$3:$C$286,$A8,'지적사항 및 개선방안(종합)'!$G$3:$G$286,F$6) -> 0 | G8: =COUNTIFS('지적사항 및 개선방안(종합)'!$C$3:$C$286,$A8,'지적사항 및 개선방안(종합)'!$G$3:$G$286,G$6) -> 0 | H8: =COUNTIFS('지적사항 및 개선방안(종합)'!$C$3:$C$286,$A8,'지적사항 및 개선방안(종합)'!$G$3:$G$286,H$6) -> 1 | I8: =COUNTIFS('지적사항 및 개선방안(종합)'!$C$3:$C$286,$A8,'지적사항 및 개선방안(종합)'!$G$3:$G$286,I$6) -> 0 | J8: =SUM(B8:I8) -> 3
A9: 산업디자인과 | B9: =COUNTIFS('지적사항 및 개선방안(종합)'!$C$3:$C$286,$A9,'지적사항 및 개선방안(종합)'!$G$3:$G$286,B$6) -> 1 | C9: =COUNTIFS('지적사항 및 개선방안(종합)'!$C$3:$C$286,$A9,'지적사항 및 개선방안(종합)'!$G$3:$G$286,C$6) -> 0 | D9: =COUNTIFS('지적사항 및 개선방안(종합)'!$C$3:$C$286,$A9,'지적사항 및 개선방안(종합)'!$G$3:$G$286,D$6) -> 2 | E9: =COUNTIFS('지적사항 및 개선방안(종합)'!$C$3:$C$286,$A9,'지적사항 및 개선방안(종합)'!$G$3:$G$286,E$6) -> 6 | F9: =COUNTIFS('지적사항 및 개선방안(종합)'!$C$3:$C$286,$A9,'지적사항 및 개선방안(종합)'!$G$3:$G$286,F$6) -> 0 | G9: =COUNTIFS('지적사항 및 개선방안(종합)'!$C$3:$C$286,$A9,'지적사항 및 개선방안(종합)'!$G$3:$G$286,G$6) -> 0 | H9: =COUNTIFS('지적사항 및 개선방안(종합)'!$C$3:$C$286,$A9,'지적사항 및 개선방안(종합)'!$G$3:$G$286,H$6) -> 2 | I9: =COUNTIFS('지적사항 및 개선방안(종합)'!$C$3:$C$286,$A9,'지적사항 및 개선방안(종합)'!$G$3:$G$286,I$6) -> 0 | J9: 11
A10: 섬유패션비지니스과 | B10: =COUNTIFS('지적사항 및 개선방안(종합)'!$C$3:$C$286,$A10,'지적사항 및 개선방안(종합)'!$G$3:$G$286,B$6) -> 3 | C10: =COUNTIFS('지적사항 및 개선방안(종합)'!$C$3:$C$286,$A10,'지적사항 및 개선방안(종합)'!$G$3:$G$286,C$6) -> 0 | D10: =COUNTIFS('지적사항 및 개선방안(종합)'!$C$3:$C$286,$A10,'지적사항 및 개선방안(종합)'!$G$3:$G$286,D$6) -> 2 | E10: =COUNTIFS('지적사항 및 개선방안(종합)'!$C$3:$C$286,$A10,'지적사항 및 개선방안(종합)'!$G$3:$G$286,E$6) -> 2 | F10: =COUNTIFS('지적사항 및 개선방안(종합)'!$C$3:$C$286,$A10,'지적사항 및 개선방안(종합)'!$G$3:$G$286,F$6) -> 5 | G10: =COUNTIFS('지적사항 및 개선방안(종합)'!$C$3:$C$286,$A10,'지적사항 및 개선방안(종합)'!$G$3:$G$286,G$6) -> 2 | H10: =COUNTIFS('지적사항 및 개선방안(종합)'!$C$3:$C$286,$A10,'지적사항 및 개선방안(종합)'!$G$3:$G$286,H$6) -> 1 | I10: =COUNTIFS('지적사항 및 개선방안(종합)'!$C$3:$C$286,$A10,'지적사항 및 개선방안(종합)'!$G$3:$G$286,I$6) -> 0 | J10: 15
A11: 식품영양과 | B11: =COUNTIFS('지적사항 및 개선방안(종합)'!$C$3:$C$286,$A11,'지적사항 및 개선방안(종합)'!$G$3:$G$286,B$6) -> 0 | C11: =COUNTIFS('지적사항 및 개선방안(종합)'!$C$3:$C$286,$A11,'지적사항 및 개선방안(종합)'!$G$3:$G$286,C$6) -> 2 | D11: =COUNTIFS('지적사항 및 개선방안(종합)'!$C$3:$C$286,$A11,'지적사항 및 개선방안(종합)'!$G$3:$G$286,D$6) -> 4 | E11: =COUNTIFS('지적사항 및 개선방안(종합)'!$C$3:$C$286,$A11,'지적사항 및 개선방안(종합)'!$G$3:$G$286,E$6) -> 0 | F11: =COUNTIFS('지적사항 및 개선방안(종합)'!$C$3:$C$286,$A11,'지적사항 및 개선방안(종합)'!$G$3:$G$286,F$6) -> 4 | G11: =COUNTIFS('지적사항 및 개선방안(종합)'!$C$3:$C$286,$A11,'지적사항 및 개선방안(종합)'!$G$3:$G$286,G$6) -> 0 | H11: =COUNTIFS('지적사항 및 개선방안(종합)'!$C$3:$C$286,$A11,'지적사항 및 개선방안(종합)'!$G$3:$G$286,H$6) -> 0 | I11: =COUNTIFS('지적사항 및 개선방안(종합)'!$C$3:$C$286,$A11,'지적사항 및 개선방안(종합)'!$G$3:$G$286,I$6) -> 0 | J11: 10
A12: 영상&게임콘텐츠과 | B12: =COUNTIFS('지적사항 및 개선방안(종합)'!$C$3:$C$286,$A12,'지적사항 및 개선방안(종합)'!$G$3:$G$286,B$6) -> 0 | C12: =COUNTIFS('지적사항 및 개선방안(종합)'!$C$3:$C$286,$A12,'지적사항 및 개선방안(종합)'!$G$3:$G$286,C$6) -> 0 | D12: =COUNTIFS('지적사항 및 개선방안(종합)'!$C$3:$C$286,$A12,'지적사항 및 개선방안(종합)'!$G$3:$G$286,D$6) -> 2 | E12: =COUNTIFS('지적사항 및 개선방안(종합)'!$C$3:$C$286,$A12,'지적사항 및 개선방안(종합)'!$G$3:$G$286,E$6) -> 0 | F12: =COUNTIFS('지적사항 및 개선방안(종합)'!$C$3:$C$286,$A12,'지적사항 및 개선방안(종합)'!$G$3:$G$286,F$6) -> 0 | G12: =COUNTIFS('지적사항 및 개선방안(종합)'!$C$3:$C$286,$A12,'지적사항 및 개선방안(종합)'!$G$3:$G$286,G$6) -> 0 | H12: =COUNTIFS('지적사항 및 개선방안(종합)'!$C$3:$C$286,$A12,'지적사항 및 개선방안(종합)'!$G$3:$G$286,H$6) -> 0 | I12: =COUNTIFS('지적사항 및 개선방안(종합)'!$C$3:$C$286,$A12,'지적사항 및 개선방안(종합)'!$G$3:$G$286,I$6) -> 0 | J12: 2
A13: 재활스포츠과 | B13: =COUNTIFS('지적사항 및 개선방안(종합)'!$C$3:$C$286,$A13,'지적사항 및 개선방안(종합)'!$G$3:$G$286,B$6) -> 0 | C13: =COUNTIFS('지적사항 및 개선방안(종합)'!$C$3:$C$286,$A13,'지적사항 및 개선방안(종합)'!$G$3:$G$286,C$6) -> 0 | D13: =COUNTIFS('지적사항 및 개선방안(종합)'!$C$3:$C$286,$A13,'지적사항 및 개선방안(종합)'!$G$3:$G$286,D$6) -> 1 | E13: =COUNTIFS('지적사항 및 개선방안(종합)'!$C$3:$C$286,$A13,'지적사항 및 개선방안(종합)'!$G$3:$G$286,E$6) -> 2 | F13: =COUNTIFS('지적사항 및 개선방안(종합)'!$C$3:$C$286,$A13,'지적사항 및 개선방안(종합)'!$G$3:$G$286,F$6) -> 0 | G13: =COUNTIFS('지적사항 및 개선방안(종합)'!$C$3:$C$286,$A13,'지적사항 및 개선방안(종합)'!$G$3:$G$286,G$6) -> 0 | H13: =COUNTIFS('지적사항 및 개선방안(종합)'!$C$3:$C$286,$A13,'지적사항 및 개선방안(종합)'!$G$3:$G$286,H$6) -> 0 | I13: =COUNTIFS('지적사항 및 개선방안(종합)'!$C$3:$C$286,$A13,'지적사항 및 개선방안(종합)'!$G$3:$G$286,I$6) -> 0 | J13: 3
A14: 전기과 | B14: =COUNTIFS('지적사항 및 개선방안(종합)'!$C$3:$C$286,$A14,'지적사항 및 개선방안(종합)'!$G$3:$G$286,B$6) -> 0 | C14: =COUNTIFS('지적사항 및 개선방안(종합)'!$C$3:$C$286,$A14,'지적사항 및 개선방안(종합)'!$G$3:$G$286,C$6) -> 0 | D14: =COUNTIFS('지적사항 및 개선방안(종합)'!$C$3:$C$286,$A14,'지적사항 및 개선방안(종합)'!$G$3:$G$286,D$6) -> 1 | E14: =COUNTIFS('지적사항 및 개선방안(종합)'!$C$3:$C$286,$A14,'지적사항 및 개선방안(종합)'!$G$3:$G$286,E$6) -> 2 | F14: =COUNTIFS('지적사항 및 개선방안(종합)'!$C$3:$C$286,$A14,'지적사항 및 개선방안(종합)'!$G$3:$G$286,F$6) -> 0 | G14: =COUNTIFS('지적사항 및 개선방안(종합)'!$C$3:$C$286,$A14,'지적사항 및 개선방안(종합)'!$G$3:$G$286,G$6) -> 0 | H14: =COUNTIFS('지적사항 및 개선방안(종합)'!$C$3:$C$286,$A14,'지적사항 및 개선방안(종합)'!$G$3:$G$286,H$6) -> 0 | I14: =COUNTIFS('지적사항 및 개선방안(종합)'!$C$3:$C$286,$A14,'지적사항 및 개선방안(종합)'!$G$3:$G$286,I$6) -> 0 | J14: 3
A15: 전자과 | B15: =COUNTIFS('지적사항 및 개선방안(종합)'!$C$3:$C$286,$A15,'지적사항 및 개선방안(종합)'!$G$3:$G$286,B$6) -> 1 | C15: =COUNTIFS('지적사항 및 개선방안(종합)'!$C$3:$C$286,$A15,'지적사항 및 개선방안(종합)'!$G$3:$G$286,C$6) -> 1 | D15: =COUNTIFS('지적사항 및 개선방안(종합)'!$C$3:$C$286,$A15,'지적사항 및 개선방안(종합)'!$G$3:$G$286,D$6) -> 3 | E15: =COUNTIFS('지적사항 및 개선방안(종합)'!$C$3:$C$286,$A15,'지적사항 및 개선방안(종합)'!$G$3:$G$286,E$6) -> 1 | F15: =COUNTIFS('지적사항 및 개선방안(종합)'!$C$3:$C$286,$A15,'지적사항 및 개선방안(종합)'!$G$3:$G$286,F$6) -> 1 | G15: =COUNTIFS('지적사항 및 개선방안(종합)'!$C$3:$C$286,$A15,'지적사항 및 개선방안(종합)'!$G$3:$G$286,G$6) -> 0 | H15: =COUNTIFS('지적사항 및 개선방안(종합)'!$C$3:$C$286,$A15,'지적사항 및 개선방안(종합)'!$G$3:$G$286,H$6) -> 1 | I15: =COUNTIFS('지적사항 및 개선방안(종합)'!$C$3:$C$286,$A15,'지적사항 및 개선방안(종합)'!$G$3:$G$286,I$6) -> 0 | J15: 8
A16: 정보통신과 | B16: =COUNTIFS('지적사항 및 개선방안(종합)'!$C$3:$C$286,$A16,'지적사항 및 개선방안(종합)'!$G$3:$G$286,B$6) -> 0 | C16: =COUNTIFS('지적사항 및 개선방안(종합)'!$C$3:$C$286,$A16,'지적사항 및 개선방안(종합)'!$G$3:$G$286,C$6) -> 0 | D16: =COUNTIFS('지적사항 및 개선방안(종합)'!$C$3:$C$286,$A16,'지적사항 및 개선방안(종합)'!$G$3:$G$286,D$6) -> 5 | E16: =COUNTIFS('지적사항 및 개선방안(종합)'!$C$3:$C$286,$A16,'지적사항 및 개선방안(종합)'!$G$3:$G$286,E$6) -> 3 | F16: =COUNTIFS('지적사항 및 개선방안(종합)'!$C$3:$C$286,$A16,'지적사항 및 개선방안(종합)'!$G$3:$G$286,F$6) -> 0 | G16: =COUNTIFS('지적사항 및 개선방안(종합)'!$C$3:$C$286,$A16,'지적사항 및 개선방안(종합)'!$G$3:$G$286,G$6) -> 0 | H16: =COUNTIFS('지적사항 및 개선방안(종합)'!$C$3:$C$286,$A16,'지적사항 및 개선방안(종합)'!$G$3:$G$286,H$6) -> 0 | I16: =COUNTIFS('지적사항 및 개선방안(종합)'!$C$3:$C$286,$A16,'지적사항 및 개선방안(종합)'!$G$3:$G$286,I$6) -> 0 | J16: 8
A17: 지능로봇과 | B17: =COUNTIFS('지적사항 및 개선방안(종합)'!$C$3:$C$286,$A17,'지적사항 및 개선방안(종합)'!$G$3:$G$286,B$6) -> 0 | C17: =COUNTIFS('지적사항 및 개선방안(종합)'!$C$3:$C$286,$A17,'지적사항 및 개선방안(종합)'!$G$3:$G$286,C$6) -> 0 | D17: =COUNTIFS('지적사항 및 개선방안(종합)'!$C$3:$C$286,$A17,'지적사항 및 개선방안(종합)'!$G$3:$G$286,D$6) -> 6 | E17: =COUNTIFS('지적사항 및 개선방안(종합)'!$C$3:$C$286,$A17,'지적사항 및 개선방안(종합)'!$G$3:$G$286,E$6) -> 0 | F17: =COUNTIFS('지적사항 및 개선방안(종합)'!$C$3:$C$286,$A17,'지적사항 및 개선방안(종합)'!$G$3:$G$286,F$6) -> 0 | G17: =COUNTIFS('지적사항 및 개선방안(종합)'!$C$3:$C$286,$A17,'지적사항 및 개선방안(종합)'!$G$3:$G$286,G$6) -> 0 | H17: =COUNTIFS('지적사항 및 개선방안(종합)'!$C$3:$C$286,$A17,'지적사항 및 개선방안(종합)'!$G$3:$G$286,H$6) -> 0 | I17: =COUNTIFS('지적사항 및 개선방안(종합)'!$C$3:$C$286,$A17,'지적사항 및 개선방안(종합)'!$G$3:$G$286,I$6) -> 0 | J17: 6
A18: 컴퓨터소프트웨어과 | B18: =COUNTIFS('지적사항 및 개선방안(종합)'!$C$3:$C$286,$A18,'지적사항 및 개선방안(종합)'!$G$3:$G$286,B$6) -> 0 | C18: =COUNTIFS('지적사항 및 개선방안(종합)'!$C$3:$C$286,$A18,'지적사항 및 개선방안(종합)'!$G$3:$G$286,C$6) -> 0 | D18: =COUNTIFS('지적사항 및 개선방안(종합)'!$C$3:$C$286,$A18,'지적사항 및 개선방안(종합)'!$G$3:$G$286,D$6) -> 2 | E18: =COUNTIFS('지적사항 및 개선방안(종합)'!$C$3:$C$286,$A18,'지적사항 및 개선방안(종합)'!$G$3:$G$286,E$6) -> 7 | F18: =COUNTIFS('지적사항 및 개선방안(종합)'!$C$3:$C$286,$A18,'지적사항 및 개선방안(종합)'!$G$3:$G$286,F$6) -> 0 | G18: =COUNTIFS('지적사항 및 개선방안(종합)'!$C$3:$C$286,$A18,'지적사항 및 개선방안(종합)'!$G$3:$G$286,G$6) -> 0 | H18: =COUNTIFS('지적사항 및 개선방안(종합)'!$C$3:$C$286,$A18,'지적사항 및 개선방안(종합)'!$G$3:$G$286,H$6) -> 0 | I18: =COUNTIFS('지적사항 및 개선방안(종합)'!$C$3:$C$286,$A18,'지적사항 및 개선방안(종합)'!$G$3:$G$286,I$6) -> 0 | J18: 9
A19: 컴퓨터정보보안과 | B19: =COUNTIFS('지적사항 및 개선방안(종합)'!$C$3:$C$286,$A19,'지적사항 및 개선방안(종합)'!$G$3:$G$286,B$6) -> 0 | C19: =COUNTIFS('지적사항 및 개선방안(종합)'!$C$3:$C$286,$A19,'지적사항 및 개선방안(종합)'!$G$3:$G$286,C$6) -> 0 | D19: =COUNTIFS('지적사항 및 개선방안(종합)'!$C$3:$C$286,$A19,'지적사항 및 개선방안(종합)'!$G$3:$G$286,D$6) -> 1 | E19: =COUNTIFS('지적사항 및 개선방안(종합)'!$C$3:$C$286,$A19,'지적사항 및 개선방안(종합)'!$G$3:$G$286,E$6) -> 6 | F19: =COUNTIFS('지적사항 및 개선방안(종합)'!$C$3:$C$286,$A19,'지적사항 및 개선방안(종합)'!$G$3:$G$286,F$6) -> 0 | G19: =COUNTIFS('지적사항 및 개선방안(종합)'!$C$3:$C$286,$A19,'지적사항 및 개선방안(종합)'!$G$3:$G$286,G$6) -> 0 | H19: =COUNTIFS('지적사항 및 개선방안(종합)'!$C$3:$C$286,$A19,'지적사항 및 개선방안(종합)'!$G$3:$G$286,H$6) -> 0 | I19: =COUNTIFS('지적사항 및 개선방안(종합)'!$C$3:$C$286,$A19,'지적사항 및 개선방안(종합)'!$G$3:$G$286,I$6) -> 0 | J19: 7
A20: 토목과 | B20: =COUNTIFS('지적사항 및 개선방안(종합)'!$C$3:$C$286,$A20,'지적사항 및 개선방안(종합)'!$G$3:$G$286,B$6) -> 0 | C20: =COUNTIFS('지적사항 및 개선방안(종합)'!$C$3:$C$286,$A20,'지적사항 및 개선방안(종합)'!$G$3:$G$286,C$6) -> 1 | D20: =COUNTIFS('지적사항 및 개선방안(종합)'!$C$3:$C$286,$A20,'지적사항 및 개선방안(종합)'!$G$3:$G$286,D$6) -> 3 | E20: =COUNTIFS('지적사항 및 개선방안(종합)'!$C$3:$C$286,$A20,'지적사항 및 개선방안(종합)'!$G$3:$G$286,E$6) -> 1 | F20: =COUNTIFS('지적사항 및 개선방안(종합)'!$C$3:$C$286,$A20,'지적사항 및 개선방안(종합)'!$G$3:$G$286,F$6) -> 2 | G20: =COUNTIFS('지적사항 및 개선방안(종합)'!$C$3:$C$286,$A20,'지적사항 및 개선방안(종합)'!$G$3:$G$286,G$6) -> 0 | H20: =COUNTIFS('지적사항 및 개선방안(종합)'!$C$3:$C$286,$A20,'지적사항 및 개선방안(종합)'!$G$3:$G$286,H$6) -> 2 | I20: =COUNTIFS('지적사항 및 개선방안(종합)'!$C$3:$C$286,$A20,'지적사항 및 개선방안(종합)'!$G$3:$G$286,I$6) -> 0 | J20: =SUM(B20:I20) -> 9
A21: 호텔외식조리과 | B21: =COUNTIFS('지적사항 및 개선방안(종합)'!$C$3:$C$286,$A21,'지적사항 및 개선방안(종합)'!$G$3:$G$286,B$6) -> 0 | C21: =COUNTIFS('지적사항 및 개선방안(종합)'!$C$3:$C$286,$A21,'지적사항 및 개선방안(종합)'!$G$3:$G$286,C$6) -> 0 | D21: =COUNTIFS('지적사항 및 개선방안(종합)'!$C$3:$C$286,$A21,'지적사항 및 개선방안(종합)'!$G$3:$G$286,D$6) -> 2 | E21: =COUNTIFS('지적사항 및 개선방안(종합)'!$C$3:$C$286,$A21,'지적사항 및 개선방안(종합)'!$G$3:$G$286,E$6) -> 1 | F21: =COUNTIFS('지적사항 및 개선방안(종합)'!$C$3:$C$286,$A21,'지적사항 및 개선방안(종합)'!$G$3:$G$286,F$6) -> 0 | G21: =COUNTIFS('지적사항 및 개선방안(종합)'!$C$3:$C$286,$A21,'지적사항 및 개선방안(종합)'!$G$3:$G$286,G$6) -> 0 | H21: =COUNTIFS('지적사항 및 개선방안(종합)'!$C$3:$C$286,$A21,'지적사항 및 개선방안(종합)'!$G$3:$G$286,H$6) -> 0 | I21: =COUNTIFS('지적사항 및 개선방안(종합)'!$C$3:$C$286,$A21,'지적사항 및 개선방안(종합)'!$G$3:$G$286,I$6) -> 0 | J21: 3
B22: =COUNTIFS('지적사항 및 개선방안(종합)'!$C$3:$C$286,$A22,'지적사항 및 개선방안(종합)'!$G$3:$G$286,B$6) -> 0 | C22: =COUNTIFS('지적사항 및 개선방안(종합)'!$C$3:$C$286,$A22,'지적사항 및 개선방안(종합)'!$G$3:$G$286,C$6) -> 0 | D22: =COUNTIFS('지적사항 및 개선방안(종합)'!$C$3:$C$286,$A22,'지적사항 및 개선방안(종합)'!$G$3:$G$286,D$6) -> 0 | E22: =COUNTIFS('지적사항 및 개선방안(종합)'!$C$3:$C$286,$A22,'지적사항 및 개선방안(종합)'!$G$3:$G$286,E$6) -> 0 | F22: =COUNTIFS('지적사항 및 개선방안(종합)'!$C$3:$C$286,$A22,'지적사항 및 개선방안(종합)'!$G$3:$G$286,F$6) -> 0 | G22: =COUNTIFS('지적사항 및 개선방안(종합)'!$C$3:$C$286,$A22,'지적사항 및 개선방안(종합)'!$G$3:$G$286,G$6) -> 0 | H22: =COUNTIFS('지적사항 및 개선방안(종합)'!$C$3:$C$286,$A22,'지적사항 및 개선방안(종합)'!$G$3:$G$286,H$6) -> 0 | I22: =COUNTIFS('지적사항 및 개선방안(종합)'!$C$3:$C$286,$A22,'지적사항 및 개선방안(종합)'!$G$3:$G$286,I$6) -> 0 | J22: 0
A23: 계 | B23: =SUM(B7:B22) -> 5 | C23: =SUM(C7:C22) -> 4 | D23: =SUM(D7:D22) -> 38 | E23: =SUM(E7:E22) -> 31 | F23: =SUM(F7:F22) -> 12 | G23: =SUM(G7:G22) -> 2 | H23: =SUM(H7:H22) -> 7 | I23: =SUM(I7:I22) -> 6 | J23: =SUM(J7:J22) -> 105
A24: 백분율(%) | B24: =B23/J23*100 -> 4.761904762 | C24: =C23/J23*100 -> 3.80952381 | D24: =D23/J23*100 -> 36.19047619 | E24: =E23/J23*100 -> 29.52380952 | F24: =F23/J23*100 -> 11.42857143 | G24: =G23/J23*100 -> 1.904761905 | H24: =H23/J23*100 -> 6.666666667 | I24: =I23/J23*100 -> 5.714285714 | J24: =SUM(B24:I24) -> 100

Sheet 지적사항 및 개선방안(종합)
A1: 2017년 부천대학교 연구실 정기안전점검 점검사항 및 개선방안
B2: NO. | C2: 학과명 | D2: 연구실명 | E2: 건물명 | F2: 호실 | G2: 점검분야 | H2: 점검사항 | I2: 개선방안 | J2: 비고
B3: 1 | C3: 간호과 | D3: 시뮬레이션센터 | E3: 밀레니엄관 | F3: H406 | G3: 전기안전 | H3: 비접지형 멀티탭·콘센트 사용 | I3: 접지형 콘센트·멀티탭 교체 사용
B4: 1 | C4: 간호과 | D4: 시뮬레이션센터 | E4: 밀레니엄관 | F4: H406 | G4: 생물안전 | H4: 의료폐기물 사용개시일 미기재 | I4: 의료폐기물은 최초 사용일로부터 15일을 초과하여 보관해서는 안 됨(손상성 폐기물 30일)
B5: 2 | C5: 간호과 | D5: 심화학습실습실 | E5: 밀레니엄관 | F5: H405 | G5: 전기안전 | H5: 연구실 내 개인전열기 보유 | I5: 연구실 내 개인전열기 사용 금지
B6: 2 | C6: 간호과 | D6: 심화학습실습실 | E6: 밀레니엄관 | F6: H405 | G6: 생물안전 | H6: 의료폐기물 사용개시일 미기재 | I6: 의료폐기물은 최초 사용일로부터 15일을 초과하여 보관해서는 안 됨(손상성 폐기물 30일)
B7: 2 | C7: 간호과 | D7: 심화학습실습실 | E7: 밀레니엄관 | F7: H405 | G7: 생물안전 | H7: 의료폐기물 보관기간 초과 | I7: 손상성 폐기물은 사용개시일로부터 30일이 지나기 전에 반출하도록 함
B8: 3 | C8: 간호과 | D8: 기초간호과학실습실 | E8: 밀레니엄관 | F8: H407 | G8: 생물안전 | H8: 의료폐기물 사용개시일 미기재 | I8: 의료폐기물은 최초 사용일로부터 15일을 초과하여 보관해서는 안 됨(손상성 폐기물 30일)
B9: 4 | C9: 간호과 | D9: 기본간호학실습실 | E9: 밀레니엄관 | F9: H401 | G9: 생물안전 | H9: 의료폐기물 사용개시일 미기재 | I9: 의료폐기물은 최초 사용일로부터 15일을 초과하여 보관해서는 안 됨(손상성 폐기물 30일)
B10: 4 | C10: 간호과 | D10: 기본간호학실습실 | E10: 밀레니엄관 | F10: H401 | G10: 생물안전 | H10: 의료폐기물 보관기간 초과 | I10: 병리계 폐기물, 손상성 폐기물은 각각 사용개시일로부터 15일, 30일이 지나기 전에 반출하도록 함
B11: 5 | C11: 건축과 | D11: 환경연구실 | E11: 공학관 | F11: AB107 | G11: 전기안전 | H11: 비접지형 멀티탭·콘센트 사용 | I11: 접지형 콘센트·멀티탭 교체 사용
B12: 5 | C12: 건축과 | D12: 환경연구실 | E12: 공학관 | F12: AB107 | G12: 전기안전 | H12: 분전반 전면 기구 비치로 개폐 미흡 | I12: 화재 및 위험상황시 전원을 차단하기 어려움으로 분전반 점검 가능하도록 주변 정리
B13: 6 | C13: 건축과 | D13: 컴퓨터그래픽실 | E13: 공학관 | F13: A0403 | G13: N/A
B14: 7 | C14: 건축과 | D14: 프레젠테이션실 | E14: 공학관 | F14: A0404 | G14: N/A
B15: 8 | C15: 건축과 | D15: 첨단강의실1 | E15: 공학관 | F15: A0502 | G15: N/A
B16: 9 | C16: 건축과 | D16: 첨단강의실2 | E16: 공학관 | F16: A0503 | G16: N/A
B17: 10 | C17: 건축과 | D17: 첨단강의실3 | E17: 공학관 | F17: A0507 | G17: N/A
B18: 11 | C18: 건축과 | D18: 설계STUDIO-A | E18: 공학관 | F18: A0508 | G18: N/A
B19: 12 | C19: 건축과 | D19: 설계STUDIO-B | E19: 공학관 | F19: A0509 | G19: N/A
B20: 13 | C20: 건축과 | D20: 모형제작실 | E20: 공학관 | F20: A0602 | G20: 기계안전 | H20: 이동식 사다리에 전도 방지 아웃트리거가 미설치 | I20: 이동식 사다리 양단에 전도 방지 아웃트리거를 설치하여 사다리가 넘어지거나 미끄러지지 않게 조치
B21: 14 | C21: 건축과 | D21: 건축CAD실 | E21: 예지관 | F21: C0106 | G21: N/A
B22: 15 | C22: 산업디자인과 | D22: 제1컴퓨터실습실 | E22: 한길관 | F22: E0422 | G22: 실습실 반납
B23: 16 | C23: 산업디자인과 | D23: 디자인실습실6 | E23: 한길관 | F23: E0515 | G23: 소방안전 | H23: 비상구 유도등 미설치 | I23: 출입구는 비상시 신속한 대피가 가능하도록 유도등, 비상구, 출입구 표지 등이 부착되어 있어야 함
B24: 17 | C24: 산업디자인과 | D24: 제2컴퓨터실습실 | E24: 한길관 | F24: E0432 | G24: 실습실 반납
B25: 18 | C25: 산업디자인과 | D25: 컴퓨터교육실3 | E25: 한길관 | F25: E0510 | G25: N/A
B26: 19 | C26: 산업디자인과 | D26: 컴퓨터교육실2 | E26: 한길관 | F26: E0517 | G26: N/A
B27: 20 | C27: 산업디자인과 | D27: 컴퓨터교육실1 | E27: 한길관 | F27: E0520 | G27: N/A
B28: 21 | C28: 산업디자인과 | D28: 팀 세미나실 | E28: 한길관 | F28: E0511 | G28: 전기안전 | H28: 분전반 각 회로별 명판 미부착 | I28: 점검 또는 사고 발생 시 신속한 확인 및 조치가 가능하도록 분전반 각 회로별 명판을 부착
B29: 22 | C29: 산업디자인과 | D29: 운송기기 크레이 모델링실 | E29: 한길관 | F29: EB1 | G29: 일반안전 | H29: 천장텍스 파손으로 인한 2차사고 위험 | I29: 천장텍스 파손 된 부분 수리 및 보강 권장
B30: 23 | C30: 산업디자인과 | D30: 운송기기 크레이 모델링 준비실 | E30: 한길관 | F30: EB131 | G30: 기계안전 | H30: 둥근톱기계의 날접촉 예방 장치 및 반발예방장치(분할날)가 미설치 | I30: 미설치 된 날 접촉 예방방지장치 및 반발예방장치(분할날)를 설치해서 목재 절단 시 날 접촉 및 목재반발에 의한 사고 방지
B31: 23 | C31: 산업디자인과 | D31: 운송기기 크레이 모델링 준비실 | E31: 한길관 | F31: EB131 | G31: 기계안전 | H31: 띠톱기계의 날 부위에 날접촉 예방 장치 덮개 미설치 | I31: 톱날 접촉부위에 예방장치(덮개)를 가변식으로 장착 후 톱날의 높이를 조정하여 작업 시 실험자의 상해 방지
B32: 24 | C32: 산업디자인과 | D32: 컴퓨터교육실4 | E32: 한길관 | F32: E0523 | G32: N/A
B33: 25 | C33: 산업디자인과 | D33: 3D프린트가공실 | E33: 한길관 | F33: EB1 | G33: 전기안전 | H33: 미접지 실험장비, 기계사용 (확인방법 ☞ 접지선 접속상태, 접지선 탈락, 접지선 접촉 불량, 접지선 단선 여부, 접지저항 기준 미달, 접지선 미시공) | I33: 접지상태 확인 후 접지시설 보완
B34: 26 | C34: 산업디자인과 | D34: 디자인실습실4 | E34: 한길관 | F34: E0502 | G34: 소방안전 | H34: 소화기 미비치 | I34: 소화기는 눈에 잘 띄는 위치에 비치 및 표식 부착 필요
B35: 27 | C35: 산업디자인과 | D35: 디자인실습실5 | E35: 한길관 | F35: E0504 | G35: 소방안전 | H35: 소화기 미비치 | I35: 소화기는 눈에 잘 띄는 위치에 비치 및 표식 부착 필요
B36: 28 | C36: 산업디자인과 | D36: 디자인실습실3 | E36: 한길관 | F36: E0539 | G36: 소방안전 | H36: 소화기 미비치 | I36: 소화기는 눈에 잘 띄는 위치에 비치 및 표식 부착 필요
B37: 29 | C37: 산업디자인과 | D37: 디자인실습실2 | E37: 한길관 | F37: E0536 | G37: 소방안전 | H37: 소화기 미비치 | I37: 소화기는 눈에 잘 띄는 위치에 비치 및 표식 부착 필요
B38: 30 | C38: 산업디자인과 | D38: 디자인실습실1 | E38: 한길관 | F38: E0533 | G38: 소방안전 | H38: 소화기 미비치 | I38: 소화기는 눈에 잘 띄는 위치에 비치 및 표식 부착 필요
B39: 31 | C39: 산업디자인과 | D39: 4학년 전공연구실 | E39: 한길관 | F39: E0530 | G39: N/A
B40: 32 | C40: 섬유패션비지니스과 | D40: 섬유패션CAD실 | E40: 한길관 | F40: E0401 | G40: N/A
B41: 33 | C41: 섬유패션비지니스과 | D41: 패션소재기획실 | E41: 한길관 | F41: E0403 | G41: 강의실 변경
B42: 34 | C42: 섬유패션비지니스과 | D42: 섬유패션 실습실(Ⅱ) | E42: 한길관 | F42: E0406 | G42: N/A
B43: 35 | C43: 섬유패션비지니스과 | D43: 섬유패션 실습실(Ⅲ) | E43: 한길관 | F43: E0409 | G43: 전기안전 | H43: 비접지형 멀티탭·콘센트 사용 | I43: 접지형 콘센트·멀티탭 교체 사용
B44: 36 | C44: 섬유패션비지니스과 | D44: 패션조형실습실(Ⅰ) | E44: 한길관 | F44: E0502 | G44: 공실(학교 반납)
B45: 37 | C45: 섬유패션비지니스과 | D45: 실습실(2) | E45: 한길관 | F45: E0501 | G45: 공실(학교 반납)
B46: 38 | C46: 섬유패션비지니스과 | D46: 실습재료실 | E46: 한길관 | F46: E0101 | G46: 화공안전 | H46: 부식물질, 독성물질 관리 미흡으로 누출 및 부식 등이 발생하여 연구환경 저하 | I46: 화학약품 취급기준에 적합하게 관리하여야 하고 약품 특성별로 구분하여 적합한 성능을 갖춘 전용 시약장(밀폐형환기시약장, 인화물질보관장, 부식물질보관장)에 보관하여야 함
B47: 38 | C47: 섬유패션비지니스과 | D47: 실습재료실 | E47: 한길관 | F47: E0101 | G47: 기계안전 | H47: 이동식 사다리에 전도 방지 아웃트리거가 미설치 | I47: 이동식 사다리 양단에 전도 방지 아웃트리거를 설치하여 사다리가 넘어지거나 미끄러지지 않게 조치
B48: 39 | C48: 섬유패션비지니스과 | D48: 섬유패션 실습실(Ⅰ) | E48: 한길관 | F48: E0102 | G48: 일반안전 | H48: 실험대 위 초자기구 불안정한 적재 | I48: 전도 및 낙하의 위험이 없는 위치로 이동하여 보관하거나 바구니등을 이용하여 보관
B49: 39 | C49: 섬유패션비지니스과 | D49: 섬유패션 실습실(Ⅰ) | E49: 한길관 | F49: E0102 | G49: 일반안전 | H49: 통로이동 중 전도위험 | I49: 통로이동 중 전도위험이 없도록 경사로 된 안전덮개 설치 권장
B50: 39 | C50: 섬유패션비지니스과 | D50: 섬유패션 실습실(Ⅰ) | E50: 한길관 | F50: E0102 | G50: 전기안전 | H50: 비접지형 멀티탭·콘센트 사용 | I50: 접지형 콘센트·멀티탭 교체 사용
B51: 39 | C51: 섬유패션비지니스과 | D51: 섬유패션 실습실(Ⅰ) | E51: 한길관 | F51: E0102 | G51: 화공안전 | H51: 라벨링이 안되어 있어 시료, 폐액, 시약인지 확인 불가능함 | I51: 라벨링을 하여 미연에 사고를 방지하기 바람(증류수일 경우에도 라벨링 기입을 권장함)
B52: 39 | C52: 섬유패션비지니스과 | D52: 섬유패션 실습실(Ⅰ) | E52: 한길관 | F52: E0102 | G52: 화공안전 | H52: 시약특성별 보관위치 미흡 | I52: 화학약품 취급기준에 적합하게 관리하여야 하고 약품 특성별로 구분하여 적합한 성능을 갖춘 전용 시약장(밀폐형환기시약장, 인화물질보관장, 부식물질보관장)에 보관하여야 함
B53: 39 | C53: 섬유패션비지니스과 | D53: 섬유패션 실습실(Ⅰ) | E53: 한길관 | F53: E0102 | G53: 화공안전 | H53: 시약장내 유해인자를 장기간 사용하지 않고 보관 | I53: 오염약품이나 사용기한 초과약품은 다른 시약과의 반응 및 오염의 우려가 있으므로 조속히 폐기처리 해야 함
B54: 39 | C54: 섬유패션비지니스과 | D54: 섬유패션 실습실(Ⅰ) | E54: 한길관 | F54: E0102 | G54: 화공안전 | H54: 폐액의 성상 구분 없이 보관 및 라벨 미부착 | I54: 폐액은 폐산, 폐알칼리, 폐유기용제(할로겐,비할로겐), 폐유 등으로 분류 후 전도 되지 않도록 보관하며 절대로 하수구나 싱크대에 버리는 일이 없도록 해야 함
B55: 39 | C55: 섬유패션비지니스과 | D55: 섬유패션 실습실(Ⅰ) | E55: 한길관 | F55: E0102 | G55: 가스안전 | H55: 가스누출 감지경보차단장치 전원 OFF 상태 | I55: 누출된 가스를 검지하여 자동으로 가스공급을 차단할 수 있는 가스누출경보차단장치의 전원을 항상 전원 ON상태로 유지해야 함
B56: 40 | C56: 섬유패션비지니스과 | D56: NCS편직실습실 | E56: 한길관 | F56: E0428 | G56: 창고 변경
B57: 41 | C57: 섬유패션비지니스과 | D57: 섬유패션 제품제작실 | E57: 한길관 | F57: E0429 | G57: 소방안전 | H57: 소화기 미비치 | I57: 소화기는 눈에 잘 띄는 위치에 비치 및 표식 부착 필요
B58: 42 | C58: 섬유패션비지니스과 | D58: 섬유패션 전자상거래실 | E58: 한길관 | F58: E0230 | G58: 소방안전 | H58: 소화기 미비치 | I58: 소화기는 눈에 잘 띄는 위치에 비치 및 표식 부착 필요
B59: 43 | C59: 섬유패션비지니스과 | D59: 컴퓨터니트실험실 | E59: 한길관 | F59: EB105 | G59: 일반안전 | H59: 천장텍스 파손으로 인한 2차사고 위험 | I59: 천장텍스 파손 된 부분 수리 및 보강 권장
B60: 43 | C60: 섬유패션비지니스과 | D60: 컴퓨터니트실험실 | E60: 한길관 | F60: EB105 | G60: 가스안전 | H60: 가스누출 감지경보차단장치 전원 OFF 상태 | I60: 누출된 가스를 검지하여 자동으로 가스공급을 차단할 수 있는 가스누출경보차단장치의 전원을 항상 전원 ON상태로 유지해야 함
B61: 44 | C61: 식품영양과 | D61: 종합실험실 | E61: 예지관 | F61: C0101 | G61: 산업위생 | H61: 실험기기에 대한 안전보건표지(금지, 경고, 안내표지 등) 미부착 | I61: 연구활동종사자의 경각심 고취 및 안전사고 예방을 위하여 안전보건표지 부착
B62: 44 | C62: 식품영양과 | D62: 종합실험실 | E62: 예지관 | F62: C0101 | G62: 산업위생 | H62: 농축기기에 대한 암후드 미설치 | I62: 암후드 설치 및 환기설비 개선
B63: 44 | C63: 식품영양과 | D63: 종합실험실 | E63: 예지관 | F63: C0101 | G63: 화공안전 | H63: 물질안전보건자료(MSDS) 미흡 | I63: 물질안전보건자료의 내용은 전체 List가 확보된 문서를 확보하여 보관중인 주변이나 눈에 잘 띄는 장소에 게시하거나 그 밖에 고용노동부장관이 정하여 고시한 바에 따라 제공하여야 함
B64: 44 | C64: 식품영양과 | D64: 종합실험실 | E64: 예지관 | F64: C0101 | G64: 화공안전 | H64: 시약장내 유해인자를 장기간 사용하지 않고 보관 | I64: 오염약품이나 사용기한 초과약품은 다른 시약과의 반응 및 오염의 우려가 있으므로 조속히 폐기처리 해야 함
B65: 44 | C65: 식품영양과 | D65: 종합실험실 | E65: 예지관 | F65: C0101 | G65: 화공안전 | H65: 세척설비(비상샤워기, 세안기) 미설치 | I65: 비상세안기의 설치위치는 강산이나 강염기를 취급하는 곳에는 바로 옆에, 그 외의 경우와 비상샤워기는 10초 이내에 도달할 수 있는 위치에 확실히 알아 볼 수 있는 표지와 함께 설치
B66: 45 | C66: 식품영양과 | D66: 실험준비실 | E66: 예지관 | F66: C0102 | G66: 전기안전 | H66: 미접지 실험장비, 기계사용 (확인방법 ☞ 접지선 접속상태, 접지선 탈락, 접지선 접촉 불량, 접지선 단선 여부, 접지저항 기준 미달, 접지선 미시공) | I66: 접지상태 확인 후 접지시설 보완
B67: 46 | C67: 식품영양과 | D67: 기구실 | E67: 예지관 | F67: C0103 | G67: 화공안전 | H67: 시약장내 유해인자를 장기간 사용하지 않고 보관 | I67: 오염약품이나 사용기한 초과약품은 다른 시약과의 반응 및 오염의 우려가 있으므로 조속히 폐기처리 해야 함
B68: 47 | C68: 식품영양과 | D68: 종합실습실 | E68: 예지관 | F68: C0306 | G68: N/A
B69: 48 | C69: 식품영양과 | D69: 조리과학실 | E69: 예지관 | F69: C0307 | G69: N/A
B70: 49 | C70: 식품영양과 | D70: 조리실습실 | E70: 예지관 | F70: C0308 | G70: N/A
B71: 50 | C71: 식품영양과 | D71: 서양조리실습실 | E71: 예지관 | F71: C0408 | G71: 전기안전 | H71: 연구실 내 개인전열기 보유 | I71: 연구실 내 개인전열기 사용 금지
B72: 50 | C72: 식품영양과 | D72: 서양조리실습실 | E72: 예지관 | F72: C0408 | G72: 전기안전 | H72: 개수대 주위 방수형콘센트 파손 | I72: 누전 등의 사고가 발생 하지 않도록 파손된 방수형콘센트 교체 사용
B73: 51 | C73: 식품영양과 | D73: 관능평가실 | E73: 예지관 | F73: C0509 | G73: 전기안전 | H73: 연구실 내 개인전열기 보유 | I73: 연구실 내 개인전열기 사용 금지
B74: 52 | C74: 영상&게임콘텐츠과 | D74: 3D VISUAL실 | E74: 한길관 | F74: E0416 | G74: N/A
B75: 53 | C75: 영상&게임콘텐츠과 | D75: 컴퓨터실 | E75: 한길관 | F75: E0419 | G75: 전기안전 | H75: 비접지형 멀티탭·콘센트 사용 | I75: 접지형 콘센트·멀티탭 교체 사용
B76: 54 | C76: 영상&게임콘텐츠과 | D76: 3D STATION실 | E76: 한길관 | F76: E0438 | G76: 전기안전 | H76: 비접지형 멀티탭·콘센트 사용 | I76: 접지형 콘센트·멀티탭 교체 사용
B77: 55 | C77: 재활스포츠과 | D77: 실습실B | E77: 기념관,체육관 | F77: I0205 | G77: N/A
B78: 56 | C78: 재활스포츠과 | D78: 실습실A | E78: 기념관,체육관 | F78: I0201 | G78: 소방안전 | H78: 소화기 미비치 | I78: 소화기는 눈에 잘 띄는 위치에 비치 및 표식 부착 필요
B79: 57 | C79: 재활스포츠과 | D79: 운동재활실습실C | E79: 기념관,체육관 | F79: I0201 | G79: 소방안전 | H79: 소화기의 약제방출 압력 미달 | I79: 축압식 소화기는 외형상 압력계가 설치되어 있으며 압력계는 녹색(7㎏/㎠ ～9.8㎏/㎠)을 지시하면 정상이고 압력미달이나 과충전되어 있으면 안 됨
B80: 58 | C80: 재활스포츠과 | D80: 댄스실 | E80: 기념관,체육관 | F80: I0101 | G80: N/A
B81: 59 | C81: 재활스포츠과 | D81: TRX실 | E81: 기념관,체육관 | F81: IB104 | G81: N/A
B82: 60 | C82: 재활스포츠과 | D82: 체성분,체형분석실 | E82: 기념관,체육관 | F82: IB101 | G82: 전기안전 | H82: 비접지형 멀티탭·콘센트 사용 | I82: 접지형 콘센트·멀티탭 교체 사용
B83: 61 | C83: 전기과 | D83: 컴퓨터실습실 | E83: 한길관 | F83: E0422 | G83: 소방안전 | H83: 비상구유도등 OFF 상태 | I83: 비상구유도등은 항상 ON 상태를 유지하도록 관리
B84: 62 | C84: 전기과 | D84: 전기실습실 | E84: 한길관 | F84: E0432 | G84: 전기안전 | H84: 케이블 정리 상태 미흡 및 통행이동 중 전도위험 | I84: 케이블타이 및 안전덮개를 이용하여 전선 관리 및 전선 피복 손상되지 않도록 함
B85: 62 | C85: 전기과 | D85: 전기실습실 | E85: 한길관 | F85: E0432 | G85: 소방안전 | H85: 비상구유도등 OFF 상태 | I85: 비상구유도등은 항상 ON 상태를 유지하도록 관리
B86: 63 | C86: 전자과 | D86: Project실습실 | E86: 한길관 | F86: E0201 | G86: 일반안전 | H86: 정리정돈 미흡 | I86: 주기적인 청소 및 정리를 통해 안전한 연구환경 조성
B87: 63 | C87: 전자과 | D87: Project실습실 | E87: 한길관 | F87: E0201 | G87: 산업위생 | H87: 납땜 작업 시 납연기 제거기 미설치로 연구활동종사자가 유해물질에 직접적으로 노출되고 있음 | I87: 납땜 작업을 실시 할 때에는 납연기 제거기를 설치하고 개인보호구 착용하여야 함
B88: 63 | C88: 전자과 | D88: Project실습실 | E88: 한길관 | F88: E0201 | G88: 화공안전 | H88: 물질안전보건자료(MSDS) 미비치 | I88: 보유중인 모든 유해인자에 대한 물질안전보건자료(MSDS)를 보관중인 주변이나 눈에 잘 띄는 장소에 게시하거나 그 밖에 고용노동부장관이 정하여 고시한 바에 따라 제공하여야 함
B89: 63 | C89: 전자과 | D89: Project실습실 | E89: 한길관 | F89: E0201 | G89: 기계안전 | H89: 이동식 사다리에 전도 방지 아웃트리거가 미설치 | I89: 이동식 사다리 양단에 전도 방지 아웃트리거를 설치하여 사다리가 넘어지거나 미끄러지지 않게 조치
B90: 64 | C90: 전자과 | D90: 컴퓨터실습실 | E90: 한길관 | F90: E0203 | G90: 전기안전 | H90: 케이블 정리 상태 미흡 및 통행이동 중 전도위험 | I90: 케이블타이 및 안전덮개를 이용하여 전선 관리 및 전선 피복 손상되지 않도록 함
B91: 65 | C91: 전자과 | D91: 디지털공학실험실 | E91: 한길관 | F91: E0207 | G91: N/A
B92: 66 | C92: 전자과 | D92: 반도체공정장비실1 | E92: 한길관 | F92: E0212 | G92: N/A
B93: 67 | C93: 전자과 | D93: 반도체공정장비실2 | E93: 한길관 | F93: E0213 | G93: N/A
B94: 68 | C94: 전자과 | D94: 전자공학실험실 | E94: 한길관 | F94: E0216 | G94: 전기안전 | H94: 콘센트·멀티탭 구멍에 먼지가 쌓이게 되면 플러그를 꽂을 때 트렉킹 현상(전기스파크로 인한 전기화재) | I94: 콘센트 안전덮개를 사용하거나 주기적으로 청소 및 관리
B95: 69 | C95: 전자과 | D95: 반도체기초 실험실 | E95: 한길관 | F95: E0236 | G95: 소방안전 | H95: 소화기 위치표지 미부착 | I95: 소화기 위치표지를 부착하여 화재 시 빠르게 찾을 수 있도록 함
B96: 70 | C96: 전자과 | D96: 전자응용실험실 | E96: 한길관 | F96: E0316 | G96: N/A
B97: 71 | C97: 전자과 | D97: 전자제어실험실 | E97: 한길관 | F97: E0320 | G97: 전기안전 | H97: 분전반 전면 기구 비치로 개폐 미흡 | I97: 화재 및 위험상황시 전원을 차단하기 어려움으로 분전반 점검 가능하도록 주변 정리
B98: 72 | C98: 전자과 | D98: 취업아카데미 실험실 | E98: 한길관 | F98: E0323 | G98: N/A
B99: 73 | C99: 정보통신과 | D99: 컴퓨터2실 | E99: 꿈집 | F99: B1001 | G99: 전기안전 | H99: 분전반 각 회로별 명판 미부착 | I99: 점검 또는 사고 발생 시 신속한 확인 및 조치가 가능하도록 분전반 각 회로별 명판을 부착
B100: 74 | C100: 정보통신과 | D100: 컴퓨터1실 | E100: 꿈집 | F100: B1004 | G100: 전기안전 | H100: 비접지형 멀티탭·콘센트 사용 | I100: 접지형 콘센트·멀티탭 교체 사용
B101: 75 | C101: 정보통신과 | D101: 응용소프트웨어실 | E101: 꿈집 | F101: B1005 | G101: 전기안전 | H101: 분전반 전면 기구 비치로 개폐 미흡 | I101: 화재 및 위험상황시 전원을 차단하기 어려움으로 분전반 점검 가능하도록 주변 정리
B102: 75 | C102: 정보통신과 | D102: 응용소프트웨어실 | E102: 꿈집 | F102: B1005 | G102: 소방안전 | H102: 좁은 통로로 실험실습자의 신속한 대피를 위한 통로 확보 협소 | I102: 연구실에는 적어도 약 60cm의 통로 간격이 필요하며 비상 탈출용의 주 통로는 반드시 적어도 90cm 이상의 폭을 유지
B103: 76 | C103: 정보통신과 | D103: 응용전자실험실 | E103: 꿈집 | F103: B1008 | G103: N/A
B104: 77 | C104: 정보통신과 | D104: 네트워크실 | E104: 꿈집 | F104: B1102 | G104: N/A
B105: 78 | C105: 정보통신과 | D105: 아날로그실습실 | E105: 꿈집 | F105: B1108 | G105: N/A
B106: 79 | C106: 정보통신과 | D106: WEBMASTER실 | E106: 꿈집 | F106: B1204 | G106: 소방안전 | H106: 출입문을 임의로 폐쇄하여 화재, 폭발 등 재난 발생 시 양방향 피난의 대피가 어려움 | I106: 출입구 주변 1.8m 이내에는 장애물을 비치하지 않도록 하여 출입문 개폐가 용이하도록 관리바람
B107: 80 | C107: 정보통신과 | D107: 정보통신실습실 | E107: 꿈집 | F107: B1215 | G107: 전기안전 | H107: 비접지형 멀티탭·콘센트 사용 | I107: 접지형 콘센트·멀티탭 교체 사용
B108: 81 | C108: 정보통신과 | D108: 디지털통신실험실 | E108: 꿈집 | F108: B1304 | G108: 소방안전 | H108: 비상구 유도등 미설치 | I108: 출입구는 비상시 신속한 대피가 가능하도록 유도등, 비상구, 출입구 표지 등이 부착되어 있어야 함
B109: 82 | C109: 정보통신과 | D109: e-교실 | E109: 꿈집 | F109: B1305-1 | G109: 전기안전 | H109: 전선관리 미흡 | I109: 피복되어 있는 절연전선 사용
B110: 83 | C110: 정보통신과 | D110: 캡스톤디자인Ⅲ | E110: 꿈집 | F110: B1305 | G110: N/A
B111: 84 | C111: 지능로봇과 | D111: 전동기제어실습실 | E111: 한길관 | F111: E0218 | G111: N/A
B112: 85 | C112: 지능로봇과 | D112: 제1컴퓨터실습실 | E112: 한길관 | F112: E0222 | G112: 전기안전 | H112: 케이블 정리 상태 미흡 및 통행이동 중 전도위험 | I112: 케이블타이 및 안전덮개를 이용하여 전선 관리 및 전선 피복 손상되지 않도록 함
B113: 86 | C113: 지능로봇과 | D113: 기초전자실험실 | E113: 한길관 | F113: E0228 | G113: 전기안전 | H113: 분전반 각 회로별 명판 미부착 | I113: 점검 또는 사고 발생 시 신속한 확인 및 조치가 가능하도록 분전반 각 회로별 명판을 부착
B114: 86 | C114: 지능로봇과 | D114: 기초전자실험실 | E114: 한길관 | F114: E0228 | G114: 전기안전 | H114: 비접지형 멀티탭·콘센트 사용 | I114: 접지형 콘센트·멀티탭 교체 사용
B115: 87 | C115: 지능로봇과 | D115: 로봇공학실 | E115: 한길관 | F115: E0301 | G115: 전기안전 | H115: 미접지 분전반 (확인방법 ☞ 접지선 접속상태, 접지선 탈락, 접지선 접촉 불량, 접지선 단선 여부, 접지저항 기준 미달, 접지선 미시공) | I115: 접지상태 확인 후 접지시설 보완
B116: 88 | C116: 지능로봇과 | D116: 제2컴퓨터실습실 | E116: 한길관 | F116: E0338 | G116: 전기안전 | H116: 분전반 각 회로별 명판 미부착 | I116: 점검 또는 사고 발생 시 신속한 확인 및 조치가 가능하도록 분전반 각 회로별 명판을 부착
B117: 89 | C117: 지능로봇과 | D117: 시퀸스실습실 | E117: 한길관 | F117: E0343 | G117: 전기안전 | H117: 분전반 각 회로별 명판 미부착 | I117: 점검 또는 사고 발생 시 신속한 확인 및 조치가 가능하도록 분전반 각 회로별 명판을 부착
B118: 90 | C118: 컴퓨터소프트웨어과 | D118: 제2프로젝트실 | E118: 꿈집 | F118: B0512 | G118: N/A
B119: 91 | C119: 컴퓨터소프트웨어과 | D119: 제1공용컴퓨터실 | E119: 꿈집 | F119: B0601 | G119: 소방안전 | H119: 소화기 위치표지 미부착 | I119: 소화기 위치표지를 부착하여 화재 시 빠르게 찾을 수 있도록 함
B120: 92 | C120: 컴퓨터소프트웨어과 | D120: 제2공용컴퓨터실 | E120: 꿈집 | F120: B0604 | G120: 소방안전 | H120: 소화기 위치표지 미부착 | I120: 소화기 위치표지를 부착하여 화재 시 빠르게 찾을 수 있도록 함
B121: 93 | C121: 컴퓨터소프트웨어과 | D121: 멀티미디어실 | E121: 꿈집 | F121: B0603 | G121: 전기안전 | H121: 연구실 내 개인전열기 보유 | I121: 연구실 내 개인전열기 사용 금지
B122: 93 | C122: 컴퓨터소프트웨어과 | D122: 멀티미디어실 | E122: 꿈집 | F122: B0603 | G122: 소방안전 | H122: 소화기 위치표지 미부착 | I122: 소화기 위치표지를 부착하여 화재 시 빠르게 찾을 수 있도록 함
B123: 93 | C123: 컴퓨터소프트웨어과 | D123: 멀티미디어실 | E123: 꿈집 | F123: B0603 | G123: 소방안전 | H123: 비상구 유도등 미설치 | I123: 출입구는 비상시 신속한 대피가 가능하도록 유도등, 비상구, 출입구 표지 등이 부착되어 있어야 함
B124: 94 | C124: 컴퓨터소프트웨어과 | D124: 제3공용컴퓨터실 | E124: 꿈집 | F124: B0608 | G124: 소방안전 | H124: 소화기 위치표지 미부착 | I124: 소화기 위치표지를 부착하여 화재 시 빠르게 찾을 수 있도록 함
A125: ㅑ | B125: 95 | C125: 컴퓨터소프트웨어과 | D125: 제4공용컴퓨터실 | E125: 꿈집 | F125: B0611 | G125: 소방안전 | H125: 소화기 위치표지 미부착 | I125: 소화기 위치표지를 부착하여 화재 시 빠르게 찾을 수 있도록 함
B126: 96 | C126: 컴퓨터소프트웨어과 | D126: 제1프로젝트실 | E126: 꿈집 | F126: B0607 | G126: 전기안전 | H126: 비접지형 멀티탭·콘센트 사용 | I126: 접지형 콘센트·멀티탭 교체 사용
B127: 97 | C127: 컴퓨터소프트웨어과 | D127: 제5공용컴퓨터실 | E127: 꿈집 | F127: B0614 | G127: 소방안전 | H127: 소화기 위치표지 미부착 | I127: 소화기 위치표지를 부착하여 화재 시 빠르게 찾을 수 있도록 함
B128: 98 | C128: 컴퓨터정보보안과 | D128: 제3컴퓨터실 | E128: 꿈집 | F128: B1101 | G128: 소방안전 | H128: 소화기 위치표지 미부착 | I128: 소화기 위치표지를 부착하여 화재 시 빠르게 찾을 수 있도록 함
B129: 98 | C129: 컴퓨터정보보안과 | D129: 제3컴퓨터실 | E129: 꿈집 | F129: B1101 | G129: 소방안전 | H129: 비상구 유도등 미설치 | I129: 출입구는 비상시 신속한 대피가 가능하도록 유도등, 비상구, 출입구 표지 등이 부착되어 있어야 함
B130: 99 | C130: 컴퓨터정보보안과 | D130: 제2컴퓨터실 | E130: 꿈집 | F130: B1103 | G130: 소방안전 | H130: 소화기 위치표지 미부착 | I130: 소화기 위치표지를 부착하여 화재 시 빠르게 찾을 수 있도록 함
B131: 99 | C131: 컴퓨터정보보안과 | D131: 제2컴퓨터실 | E131: 꿈집 | F131: B1103 | G131: 소방안전 | H131: 출입문을 임의로 폐쇄하여 화재, 폭발 등 재난 발생 시 양방향 피난의 대피가 어려움 | I131: 출입구 주변 1.8m 이내에는 장애물을 비치하지 않도록 하여 출입문 개폐가 용이하도록 관리바람
B132: 100 | C132: 컴퓨터정보보안과 | D132: 제1컴퓨터실 | E132: 꿈집 | F132: B1110 | G132: 전기안전 | H132: 비접지형 멀티탭·콘센트 사용 | I132: 접지형 콘센트·멀티탭 교체 사용
B133: 100 | C133: 컴퓨터정보보안과 | D133: 제1컴퓨터실 | E133: 꿈집 | F133: B1110 | G133: 소방안전 | H133: 소화기 위치표지 미부착 | I133: 소화기 위치표지를 부착하여 화재 시 빠르게 찾을 수 있도록 함
B134: 101 | C134: 컴퓨터정보보안과 | D134: 제5컴퓨터실 | E134: 꿈집 | F134: B1306 | G134: 소방안전 | H134: 소화기 위치표지 미부착 | I134: 소화기 위치표지를 부착하여 화재 시 빠르게 찾을 수 있도록 함
B135: 102 | C135: 토목과 | D135: 토질실험실 | E135: 공학관 | F135: A0101 | G135: N/A
B136: 103 | C136: 토목과 | D136: 토질실험준비실 | E136: 공학관 | F136: A0102 | G136: N/A
B137: 104 | C137: 토목과 | D137: 환경실험실 | E137: 공학관 | F137: A0201 | G137: 소방안전 | H137: 소화기 위치표지 미부착 | I137: 소화기 위치표지를 부착하여 화재 시 빠르게 찾을 수 있도록 함
B138: 105 | C138: 토목과 | D138: 측량실 | E138: 공학관 | F138: A0205 | G138: N/A
B139: 106 | C139: 토목과 | D139: CAD실 | E139: 공학관 | F139: A0309 | G139: 전기안전 | H139: 분전반 각 회로별 명판 미부착 | I139: 점검 또는 사고 발생 시 신속한 확인 및 조치가 가능하도록 분전반 각 회로별 명판을 부착
B140: 107 | C140: 토목과 | D140: 전산구조설계실 | E140: 공학관 | F140: A0310 | G140: 전기안전 | H140: 분전반 각 회로별 명판 미부착 | I140: 점검 또는 사고 발생 시 신속한 확인 및 조치가 가능하도록 분전반 각 회로별 명판을 부착
B141: 108 | C141: 토목과 | D141: 구조재료실험실 | E141: 공학관 | F141: AB101 | G141: 산업위생 | H141: 보유시약에 대한 GHS안전보건표지 미부착 및 부착미흡 | I141: 보유시약에 대한 GHS안전보건표지 부착
B142: 108 | C142: 토목과 | D142: 구조재료실험실 | E142: 공학관 | F142: AB101 | G142: 전기안전 | H142: 누전차단기 미부착 된 작업선(릴선) 사용 | I142: 미연의 사고를 방지하기 위해 차단기가 부착된 작업선 사용을 권고
B143: 108 | C143: 토목과 | D143: 구조재료실험실 | E143: 공학관 | F143: AB101 | G143: 화공안전 | H143: 시약장내 유해인자를 장기간 사용하지 않고 보관 | I143: 오염약품이나 사용기한 초과약품은 다른 시약과의 반응 및 오염의 우려가 있으므로 조속히 폐기처리 해야 함
B144: 108 | C144: 토목과 | D144: 구조재료실험실 | E144: 공학관 | F144: AB101 | G144: 화공안전 | H144: 세척설비(비상샤워기, 세안기) 미설치 | I144: 비상세안기의 설치위치는 강산이나 강염기를 취급하는 곳에는 바로 옆에, 그 외의 경우와 비상샤워기는 10초 이내에 도달할 수 있는 위치에 확실히 알아 볼 수 있는 표지와 함께 설치
B145: 108 | C145: 토목과 | D145: 구조재료실험실 | E145: 공학관 | F145: AB101 | G145: 기계안전 | H145: 공작기계 드릴머신은 드릴작업 및 칩 제거 작업 시 회전하는 드릴 날에 작업자의 장갑, 소매 등 말림 위험과 안면부(눈 등) 및 팔 등에 칩비산에 의한 상해 우려가 있음 | I145: 실습자의 안전을 위해서 드릴머신 칩비산 부위에 탁상용 드릴 날에 180° 열림이 가능한 투명 원통형 방호덮개 설치
B146: 108 | C146: 토목과 | D146: 구조재료실험실 | E146: 공학관 | F146: AB101 | G146: 기계안전 | H146: 위험기계 안전수칙 미게시 | I146: 안전수칙을 판넬로 제작하여 실습장 내에 게시하고 작업 시작 전 숙지하게 한 후 작업에 임할 수 있게 조치
B147: 109 | C147: 토목과 | D147: 수리실험실 | E147: 공학관 | F147: AB102 | G147: N/A
B148: 110 | C148: 호텔외식조리과 | D148: 한국조리실 | E148: 예지관 | F148: C0201 | G148: 전기안전 | H148: 개수대 주위 방수형콘센트 파손 | I148: 누전 등의 사고가 발생 하지 않도록 파손된 방수형콘센트 교체 사용
B149: 111 | C149: 호텔외식조리과 | D149: 제과제빵실 | E149: 예지관 | F149: C0203 | G149: N/A
B150: 112 | C150: 호텔외식조리과 | D150: 식음료 및 식공간 연출 | E150: 예지관 | F150: C0205 | G150: 전기안전 | H150: 케이블 정리 상태 미흡 및 통행이동 중 전도위험 | I150: 케이블타이 및 안전덮개를 이용하여 전선 관리 및 전선 피복 손상되지 않도록 함
B151: 113 | C151: 호텔외식조리과 | D151: 양식조리실 | E151: 예지관 | F151: C0301 | G151: N/A
B152: 114 | C152: 호텔외식조리과 | D152: 푸드스튜디오 | E152: 예지관 | F152: C0401 | G152: 소방안전 | H152: 소화전 사용법 미부착 | I152: 옥내소화전설비의 함에는 그 표면에 "소화전"이라는 표시와 사용요령을 기재한 표지판(외국어 병기)을 붙여야 함
B153: 115 | C153: 호텔외식조리과 | D153: 메뉴 개발실1 | E153: 예지관 | F153: C0501 | G153: N/A
B154: 116 | C154: 호텔외식조리과 | D154: 메뉴 개발실2 | E154: 예지관 | F154: C0502 | G154: N/A
A155: ㅑ
